{"text_format":"1","workbook":"xlsx","n_sheets":17,"sheets":["Introduction","Table of Contents","Operations in Inventory","Direct - Fuel Combust.","Mobile & Transportation","Waste Management","Biomass Combustion CO2","Indirect - Energy Imports","Indirect - Energy Exports","CHP Allocation","Summary Table","Custom Emission Factors","Energy content","Conversion Factors","Raw Data Log","Energy Factors","Revisions"],"not_rendered":{"charts":0,"images":11,"macros":1,"external_links":1,"defined_names":47,"comments":1,"pivot_tables":0},"unopened":[],"bounds":{"document_bytes":16777216,"sheet_cells":100000,"rows_first":2000,"rows_last":500,"rows_between":2000,"halvings":0,"cell_chars":16384,"cell_head_chars":4096},"cells_cut":0,"cells_raw":0,"read":"whole","date_system":"1900"}

{"sheet":"Introduction","index":0,"n_rows":33,"n_cols":7,"rows_kept":33,"cut":false,"hidden":false,"merged":[[28,2,28,8],[30,3,30,8],[31,3,31,8],[32,3,32,8],[0,1,0,9],[10,2,10,9],[26,2,26,8],[3,2,8,9],[12,2,13,7],[11,2,11,7],[1,2,1,8]]}
["        ","ICFPA/NCASI Spreadsheets for \nCalculating GHG emissions from Wood Products Manufacturing\n\nWorkbook Version 3.3b, appropriate for use in the Canadian Mandatory Reporting Program\n(Large Final Emitters program) or for potential regulatory offset project estimation. IPCC Method for methane emissions\n\n (see below for USER AGREEMENT)"]
[null,null,"An aid to developing estimates using the methods in \"Calculation Tools for Estimating Greenhouse Gas Emissions from Wood Products Manufacturing Facilities\", Report Version 1.0"]
[]
[null,null,"This tool intends to facilitate the calculation of direct CO2, CH4, and N2O emissions from wood products manufacturing and ancillary operations.  It also addresses emissions attributable to the purchase and export of electricity and/or steam. This document is to be used in conjunction with two additional documents:\n1) 'Calculation Tools for Estimating Greenhouse Gas Emissions from Wood Products Manufacturing Facilities, Report Version 1.0' and\n2) ‘The Greenhouse Gas Protocol, A Corporate Accounting and Reporting Standard, Revised Edition’, available at www.ghgprotocol.org \n"]
[]
[]
[]
[]
[]
[]
[null,null,"These spreadsheets include significant amounts of material copied from other WRI and WBCSD calculation tools. \n Intellectual property rights of the WRI and WBCSD calculation tools belong to WRI and WBCSD, unless stated otherwise."]
[]
[null,null,"The reporting information required by the Canadian mandatory GHG reporting program can be satisfied by completing the following worksheets:"]
[]
[null,null,null,"Operations in Inventory"]
[null,null,null,"Stationary Combustion"]
[null,null,null,"Other - Mobile & Transportation"]
[null,null,null,"Other - Waste Management (IPCC Method for methane emissions)"]
[null,null,null,"Biomass Combustion CO2"]
[null,null,null,"Indirect - Energy Imports"]
[null,null,null,"Indirect - Energy Exports"]
[null,null,null,"Summary Table"]
[]
[null,null,"Global Warming potentials used in this tool are:",null,null,25,"kg CO2 eq./kg CH4"]
[null,null,null,null,null,298,"kg CO2 eq./kg CH4"]
[]
[null,null,"These spreadsheets were developed by NCASI for the Climate Change Working Group of the International Council of Forest and Paper Associations (ICFPA).  Questions or comments on this material can be directed to:\n\nBarry Malmberg\nNCASI\nPO Box 271\nSheridan, WY 82801\nphone: + 541-752-8806\ne-mail:  BMalmberg@ncasi.org"]
[]
[null,null,"User Agreement:  By using the Spreadsheets and associated materials in any manner, the User agrees to the following terms of this agreement:"]
[]
[null,null,"1 ","Copyright:  Portions of the spreadsheets and associated materials were developed by WRI, WBCSD or NCASI, are copyrighted, and are published here with the permission of those developers.  The User acknowledges these copyrights.  "]
[null,null,"2 ","Acknowledgement:  The User agrees to acknowledge WRI, WBCSD, ICFPA, and NCASI for their roles in developing the Spreadsheets whenever the User authors reports or publications based in whole or in part on the use of the Spreadsheets.  "]
[null,null,"3 ","Disclaimer: These Spreadsheets and associated materials have been prepared with a high degree of expertise and professionalism, and it is believed that the Spreadsheets provide a useful and accurate approach for calculating greenhouse gas emissions.  However, the organizations involved in their development, including WRI, WBCSD, ICFPA and NCASI, collectively and individually, do not warrant these Spreadsheets for any purpose, nor do they make any representations regarding their fitness for any use or purpose whatsoever.  Each User agrees to decide if, when and how to use the Spreadsheets, and does so at his or her sole risk.  Under no circumstances shall WRI, WBCSD, ICFPA or NCASI be liable for any damages, including incidental, special or consequential damages, arising from the use of these Spreadsheets or an inability to use them.  "]

{"sheet":"Table of Contents","index":1,"n_rows":19,"n_cols":4,"rows_kept":19,"cut":false,"hidden":false,"merged":[[23,3,23,8],[15,3,15,5],[20,3,20,8],[21,3,21,8],[22,3,22,8],[6,3,6,7],[10,3,10,7],[11,3,11,7],[12,3,12,7],[14,3,14,6]]}
[]
[null,null,"Name of worksheet","Content / purpose"]
[]
[null,null,"Introduction"]
[null,null,"Table of Contents"]
[null,null,"Operations in Inventory","Describing the inventory boundaries and listing the operations included in the inventory"]
[null,null,"Stationary Combustion","Direct emissions of CO2, CH4, and N2O resulting from fuel combustion - includes default emission factors"]
[null,null,"Mobile & Transportation","Emissions of CO2, CH4, and N2O from fuel combustion in mobile equipment and transportation devices"]
[null,null,"Waste Management","Emissions of CH4 resulting from mill-owned landfills or anaerobic treatment operations"]
[null,null,"Biomass Combustion CO2","Direct emissions of biomass CO2 for informational purposes only (not included with fossil fuel CO2 emissions)"]
[null,null,"Indirect - Energy Imports","GHG emissions resulting from electricity and /or steam imports"]
[null,null,"Indirect - Energy Exports","GHG emission impacts associated with electricity and /or steam exports"]
[null,null,"CHP Allocation","Allocation emissions from combined heat and power systems"]
[null,null,"Summary Table","Summarizes results of inventory"]
[null,null,"Custom Emission Factors","Calculating custom emission factors"]
[null,null,"Energy Content","Fuel specific higher heating values"]
[null,null,"Conversion Factors","Factors for converting among common units of measure"]
[null,null,"Energy Factors","Contains conversion factors and emission factors for use by formulas imbedded in the data entry forms"]
[null,null,"Raw Data Log","Provides a place for the automatic entry of raw data entered into the data entry forms, prior to unit conversion"]

{"sheet":"Operations in Inventory","index":2,"n_rows":40,"n_cols":7,"rows_kept":40,"cut":false,"hidden":false,"merged":[[17,5,17,6],[1,1,1,7],[4,1,4,5],[14,5,14,6],[15,5,15,6],[7,5,7,6],[8,5,8,6],[9,5,9,6],[11,5,11,6],[12,5,12,6]]}
[]
[null,"This worksheet is for showing which operations are included in the inventory"]
[null,null,null,null,null,"User enters information in spaces with this colour  "]
[]
[null,"Operations in the Inventory"]
[]
[null,null,null,null,null,"Identifying name assigned to this inventory:"]
[]
[null,null,null,null,null,"Use this space to provide a general description of operational boundaries."]
[]
[]
[null,null,null,null,null,"Use this space to provide additional information helpful to understanding the operational boundaries of the inventory. "]
[]
[]
[null,null,null,null,null,"Use this space to provide additional information helpful to understanding how emissions from partial ownership situations are allocated. "]
[]
[]
[null,null,null,null,null,"The following information is not directly used in the GHG emissions calculations, but is intended to provide clarification of the type of facility for which the inventory is being performed."]
[null,null,null,null,null,"Operations that might be included in the inventory are listed below","Place an \"X\" below where appropriate to indentify operations included in the inventory"]
[null,null,null,null,null,"Harvesting"]
[null,null,null,null,null,"Wood/chip/bark/other raw material transportation vehicles"]
[null,null,null,null,null,"Product, by-product or waste transportation vehicles"]
[null,null,null,null,null,"Debarking"]
[null,null,null,null,null,"Chipping"]
[null,null,null,null,null,"Mechanical pulping/refining"]
[null,null,null,null,null,"Thermal oil heaters"]
[null,null,null,null,null,"Natural gas direct-fired dryers"]
[null,null,null,null,null,"Other fossil fuel-fired dryers"]
[null,null,null,null,null,"On-site power and steam boilers"]
[null,null,null,null,null,"On-site combustion turbines"]
[null,null,null,null,null,"Air emissions control devices (e.g., RTOs, RCOs, ESPs, etc.)"]
[null,null,null,null,null,"Wastewater treatment operations"]
[null,null,null,null,null,"Sludge processing"]
[null,null,null,null,null,"Landfill receiving mill waste"]
[null,null,null,null,null,"On-site vehicles and machinery"]
[null,null,null,null,null,"Normal offices/workspace for mill employees"]
[null,null,null,null,null,"Imports of electrical power"]
[null,null,null,null,null,"Imports of steam or hot water"]
[null,null,null,null,null,"Exports of electrical power"]
[null,null,null,null,null,"Exports of steam or hot water"]

{"sheet":"Direct - Fuel Combust.","index":3,"n_rows":104,"n_cols":13,"rows_kept":104,"cut":false,"hidden":false,"merged":[[14,9,14,12],[10,1,10,2],[3,2,3,6],[9,1,9,2],[8,1,8,2],[5,2,5,8],[14,4,14,5],[14,6,14,8],[99,2,99,6],[100,2,100,6],[102,3,102,6],[103,3,103,6],[2,2,2,6],[50,3,50,6],[52,3,52,6],[17,6,17,8],[46,2,46,8]]}
[]
[]
[null,null,"Direct Emissions - Stationary Fuel Combustion\n(including methane and nitrous oxide emissions from biomass fuels)"]
[null,null,"\nNote: Emissions from mobile sources are reported on the \"Mobile & Transportation\" spreadsheet immediately behind this spreadsheet"]
[]
[null,null,"These spreadsheets include significant amounts of material copied from other WRI and WBCSD calculation tools. \n Intellectual property rights of the WRI and WBCSD calculation tools belong to WRI and WBCSD, unless stated otherwise."]
[]
[null,"EXPLANATION OF CELL COLOUR SCHEME"]
[null,"User entry: Source / fuel description"]
[null,"User entry: Fuel use / emission factor values",null,null,"Suggested default emission factors shown below"]
[null,"Auto calculated value:"]
[]
[]
[null,"Direct Emissions - Stationary Fuel Combustion"]
[null,null,null,null,"Step 1",null,"Step 2",null,null,"Step 3"]
[null,null,null,null,"A1","A2","B","C","D","E","F","G","H"]
[null,null,null,null,"Quantity of fuel burned","Units of Fuel Quantity","CO2 emission factor\nEmission factors from VCR shown below","CH4 emission factor\nEmission factors from VCR shown below","N2O emission factor\nEmission factors from VCR shown below","CO2 emissions in metric tonnes","CH4 emissions in metric tonnes","N2O emissions in metric tonnes","Total emissions in terms of CO2 equivalents (metric tonnes)"]
[null,null,null,null,null,null,"IMPORTANT! For the equations to function correctly, the numerator of the emission factors must be in terms of kg of GHG and the denominator must match the units of fuel quantity!!",null,null,"E = A * B / 1000","F = A * C / 1000","G = A * D / 1000","H = E + (F * GWPCH4) + (G * GWPN2O)"]
[null,null,"Example: Source 1","Natural gas",1000000,"m3",1.891,3.6999999999999998E-5,3.3000000000000003E-5,{"$f":"IF(E19=\"\",\"\",E19*G19/1000)","v":1891},{"$f":"IF(H19=\"\",\"\",E19*H19/1000)","v":3.6999999999999998E-2},{"$f":"IF(I19=\"\",\"\",E19*I19/1000)","v":3.3000000000000002E-2},{"$f":"IF(E19=\"\",\"\",IF(J19=\"\",0,J19)+IF(K19=\"\",0,K19*GWPCH4)+IF(L19=\"\",0,L19*GWPN2O))","v":1901.759}]
[null,null,"Source description","Fuel type","Fuel Quant","Fuel Units","CO2 Em. Factor","CH4 Em. Factor","N2O Em. Factor","CO2 emissions (tonne)","CH4 emissions (tonnes)","N2O emissions (tonnes)","Total EM "]
[null,null,null,null,null,null,null,null,null,{"$f":"IF(E21=\"\",\"\",E21*G21/1000)","v":""},{"$f":"IF(H21=\"\",\"\",E21*H21/1000)","v":""},{"$f":"IF(I21=\"\",\"\",E21*I21/1000)","v":""},{"$f":"IF(E21=\"\",\"\",IF(J21=\"\",0,J21)+IF(K21=\"\",0,K21*GWPCH4)+IF(L21=\"\",0,L21*GWPN2O))","v":""}]
[null,null,null,null,null,null,null,null,null,"","","",""]
[null,null,null,null,null,null,null,null,null,"","","",""]
[null,null,null,null,null,null,null,null,null,"","","",""]
[null,null,null,null,null,null,null,null,null,"","","",""]
[null,null,null,null,null,null,null,null,null,"","","",""]
[null,null,null,null,null,null,null,null,null,"","","",""]
[null,null,null,null,null,null,null,null,null,"","","",""]
[null,null,null,null,null,null,null,null,null,"","","",""]
[null,null,null,null,null,null,null,null,null,"","","",""]
[null,null,null,null,null,null,null,null,null,"","","",""]
[null,null,null,null,null,null,null,null,null,"","","",""]
[null,null,null,null,null,null,null,null,null,"","","",""]
[null,null,null,null,null,null,null,null,null,"","","",""]
[null,null,null,null,null,null,null,null,null,"","","",""]
[null,null,null,null,null,null,null,null,null,"","","",""]
[null,null,null,null,null,null,null,null,null,"","","",""]
[null,null,null,null,null,null,null,null,null,"","","",""]
[null,null,null,null,null,null,null,null,null,"","","",""]
[null,null,null,null,null,null,null,null,null,"","","",""]
[null,null,null,null,null,null,null,null,null,"","","",""]
[null,null,null,null,null,null,null,null,null,"","","",""]
[null,null,null,null,null,null,null,null,null,"","","",""]
[null,null,null,null,null,null,null,null,null,"","","",""]
[null,null,null,null,null,null,null,null,null,"","","",""]
[]
[null,null,"Note, if the Visual Basic forms are used to enter data, custom emission factors will be identified with italic text in the table above (default emission factors will be in normal font).",null,null,null,null,null,null,"CO2\n(metric tonnes)","CH4\n(metric tonnes)","N2O\n(metric tonnes)","CO2 Equivalents\n(metric tonnes)"]
[null,null,null,null,"Step 4: Sum total of GHG emissions (including CO2 exports): ",null,null,null,null,{"$f":"SUM(J21:J45)","v":0},{"$f":"SUM(K21:K45)","v":0},{"$f":"SUM(L21:L45)","v":0},{"$f":"J48+K48*GWPCH4+L48*GWPN2O","v":0}]
[]
[]
[null,null,null,"Emission Factors for Common Combustion Energy Sources for Commercial and Industrial Boilers"]
[]
[null,null,"Sources (unless otherwise noted):","CO2, CH4, and N2O emission factors are from National Inventory Report: Greenhoue Gas Sources and Sinks in Canada, 1990 - 2006 (http://www.ec.gc.ca/pdb/ghg/inventory_report/2006_report/a12_eng.cfm),published by Environment Canada, unless otherwise noted."]
[null,null,"Fuel type","CO2 Emission Factor","CH4 Emission Factor","N2O Emission Factor","Comments"]
[null,null,"Liquid Fossil"]
[null,null,"Light ('Distillate') Oil\n(Oil #2), stationary sources","2.725 kg/l","0.000006 kg/l","0.000031 kg/l","Data collected by NCASI indicates that lime kilns and calciners may exhibit higher CH4 emissions than light oil-fired boilers.\nIPCC discussion of N2O formation conditions indicates that lime kilns may exhibit zero N2O emissions."]
[null,null,"Heavy ('Residual') Oil\n(#6 Oil), stationary sources","3.124 kg/l","0.00012 kg/l","0.000064 kg/l","Data collected by NCASI indicates that lime kilns and calciners may exhibit lower CH4 emissions than heavy oil-fired boilers.\nIPCC discussion of N2O formation conditions indicates that lime kilns may exhibit zero N2O emissions.",null,null,null,null,"D"]
[null,null,"Kerosene","2.534 kg/l","0.000006 kg/l","0.000031 kg/l"]
[null,null,"Diesel","2.663 kg/l","0.00013 kg/l","0.0004 kg/l"]
[null,null,"Propane","1.510 kg/l","0.000024 kg/l","0.000108 kg/l"]
[null,null,"Butane","1.730 kg/l","0.000024 kg/l","0.000108 kg/l"]
[null,null,"Ethane","0.976 kg/l",null,null,"Environment Canada does not provide CH4 nor N2O emission factors for Ethane."]
[null,null,"Gaseous fossil"]
[null,null,"Natural Gas, stationary sources (m3)","1.891 kg/m3","0.000037 kg/m3","0.000033 kg/m3","Data collected by NCASI indicates that lime kilns and calciners may exhibit higher CH4 emissions than natural gas-fired boilers.\nIPCC discussion of N2O formation conditions indicates that lime kilns may exhibit zero N2O emissions."]
[null,null,"Still Gas","1.750 kg/m3",null,"0.000002 kg/m3","Environment Canada does not provide a CH4 emission factor for still gas."]
[null,null,"Solid Fossil"]
[null,null,"Newfoundland - Canadian Bituminous","2.25 kg/kg","0.00003 kg/kg","0.00002 kg/kg"]
[null,null,"Newfoundland - Antracite","2.39 kg/kg","0.00003 kg/kg","0.00002 kg/kg"]
[null,null,"Labrador - Canadian Bituminous","2.25 kg/kg","0.00003 kg/kg","0.00002 kg/kg"]
[null,null,"Labrador - Antracite","2.39 kg/kg","0.00003 kg/kg","0.00002 kg/kg"]
[null,null,"Nova Scotia - Canadian Bituminous","2.25 kg/kg","0.00003 kg/kg","0.00002 kg/kg"]
[null,null,"Nova Scotia - U.S. Bituminous","2.29 kg/kg","0.00003 kg/kg","0.00002 kg/kg"]
[null,null,"Nova Scotia - Sub-Bituminous","1.73 kg/kg","0.00003 kg/kg","0.00002 kg/kg"]
[null,null,"New Brunswick - Canadian Bituminous","2.00 kg/kg","0.00003 kg/kg","0.00002 kg/kg"]
[null,null,"New Brunswick - U.S. Bituminous","2.31 kg/kg","0.00003 kg/kg","0.00002 kg/kg"]
[null,null,"Quebec - Canadian Bituminous","2.25 kg/kg","0.00003 kg/kg","0.00002 kg/kg"]
[null,null,"Quebec - U.S. Bituminous","2.34 kg/kg","0.00003 kg/kg","0.00002 kg/kg"]
[null,null,"Quebec - Anthracite","2.39 kg/kg","0.00003 kg/kg","0.00002 kg/kg"]
[null,null,"Ontario - Canadian Bituminous","2.25 kg/kg","0.00003 kg/kg","0.00002 kg/kg"]
[null,null,"Ontario - U.S. Bituminous","2.43 kg/kg","0.00003 kg/kg","0.00002 kg/kg"]
[null,null,"Ontario - Sub-bituminous","1.73 kg/kg","0.00003 kg/kg","0.00002 kg/kg"]
[null,null,"Ontario - Lignite","1.48 kg/kg","0.00003 kg/kg","0.00002 kg/kg"]
[null,null,"Ontario - Anthracite","2.39 kg/kg","0.00003 kg/kg","0.00002 kg/kg"]
[null,null,"Manitoba - Canadian Bituminous","2.25 kg/kg","0.00003 kg/kg","0.00002 kg/kg"]
[null,null,"Manitoba - U.S. Bituminous","2.43 kg/kg","0.00003 kg/kg","0.00002 kg/kg"]
[null,null,"Manitoba - Sub-bituminous","1.73 kg/kg","0.00003 kg/kg","0.00002 kg/kg"]
[null,null,"Manitoba - Lignite","1.42 kg/kg","0.00003 kg/kg","0.00002 kg/kg"]
[null,null,"Manitoba - Anthracite","2.39 kg/kg","0.00003 kg/kg","0.00002 kg/kg"]
[null,null,"Saskatchewan - Canadian Bituminous","1.85 kg/kg","0.00003 kg/kg","0.00002 kg/kg"]
[null,null,"Saskatchewan - Lignite","1.43 kg/kg","0.00003 kg/kg","0.00002 kg/kg"]
[null,null,"Alberta - Canadian Bituminous","1.85 kg/kg","0.00003 kg/kg","0.00002 kg/kg"]
[null,null,"Alberta - Sub-bituminous","1.77 kg/kg","0.00003 kg/kg","0.00002 kg/kg"]
[null,null,"Alberta - Anthracite","2.39 kg/kg","0.00003 kg/kg","0.00002 kg/kg"]
[null,null,"British Columbia - Canadian Bituminous","2.07 kg/kg","0.00003 kg/kg","0.00002 kg/kg"]
[null,null,"British Columbia - U.S. Bituminous","2.43 kg/kg","0.00003 kg/kg","0.00002 kg/kg"]
[null,null,"British Columbia - Sub-Bituminous","1.77 kg/kg","0.00003 kg/kg","0.00002 kg/kg"]
[null,null,"All Provinces -  Coke","2.48 kg/kg","0.00003 kg/kg","0.00002 kg/kg"]
[null,null,"Biofuels*"]
[null,null,"Wood Fuel/Wood Waste",0,"0.00016 kg/kg","0.0001 kg/kg","Biomass combustion CO2 can be calculated in the \"Biomass Combustion CO2\" worksheet.  CH4 and N2O emission factors are from USEPA AP-42, converted to units consistent with the other EC emission factors."]
[null,null,"* Biomass fuels, such as wood and spent pulping liquors, contain ‘biogenic’ carbon.  Under international greenhouse gas accounting methods developed by the IPCC, biogenic carbon is considered to be part of the natural carbon balance and does not add to atmospheric concentrations of carbon dioxide.  Reporters may wish to use a CO2 emission factor of zero for wood, wood waste, and other biomass fuels in which the carbon is entirely biogenic.\n\n*Quantities of biomass combustion carbon dioxide emissions may be calculated in the \"Biomass Combustion CO2\" sheet of this file.  Estimates of biomass combustion CO2 emissions are not included in the Stationary Fuel Combustion emission results.\n"]
[null,null,"*The factors for biomass fuels provided by Environment Canada are not consistent with the factors published in the cited source of the Environment Canada factors.  Environment Canada indicates that \"these factors may be reviewed by Environment Canada and are for wood with high moisture content.\"  Because of the potential inaccuracies in the Environment Canada factors, the factors provided herein were drawn directly from the cited source of the Environment Canada factors when possible (United States Environmental Protection Agency (USEPA).  2001.  AP-42 emission factors for wood residue combustion in boilers – Supplement G, July 2001.  Washington, DC: United States Environmental Protection Agency.)  Unfortunately, AP-42 does not provide emission factors for spent pulping liquors.  Therefore, emission factors for pulping liquors were drawn from NCASI 2005."]
[]
[null,null,"Other sources:","National Council for Air and Stream Improvement, Inc. (NCASI).  1981.  A study of the kraft process lime kiln total gaseous non-methane organic emissions.  Technical Bulletin No. 358.  Research Triangle Park, NC: National Council for Air and Stream Improvement, Inc."]
[null,null,null,"National Council for Air and Stream Improvement, Inc. (NCASI).  2005.  Calculation Tools for Estimating Greenhouse Gas Emissions from Pulp and Paper Mills, Version 1.1.  Research Triangle Park, NC: National Council for Air and Stream Improvement, Inc."]

{"sheet":"Mobile & Transportation","index":4,"n_rows":80,"n_cols":17,"rows_kept":80,"cut":false,"hidden":false,"merged":[[45,7,45,9],[51,3,51,6],[18,18,19,24],[41,18,42,26],[16,18,16,21],[3,2,3,10],[4,2,4,11],[15,7,15,9]]}
[null,null,"Mobile and Transportation Sources which are Integral to the Production Process"]
[null,null,"Note: Emissions from stationary sources are reported on the \"Stationary Combustion\" worksheet"]
[]
[null,null,"These spreadsheets include significant amounts of material copied from other WRI and WBCSD calculation tools. \n Intellectual property rights of the WRI and WBCSD calculation tools belong to WRI and WBCSD, unless stated otherwise."]
[null,null,"This worksheet can be used to calculate emissions from mobile combustion sources, including transportation.\n\nFor transportation emissions, if total fuel consumption is not known, but distance traveled and vehicle efficiency are known, the \"Optional Calculator\" (to the right of the table) can be used to estimate fuel consumption based on distance and efficiency information.\n\nDo not include any combustion sources on this page that were already addressed in the \"Stationary Combustion\" sheet."]
[]
[null,null,"EXPLANATION OF CELL COLOUR SCHEME"]
[null,null,null,"User entry: Source / fuel description"]
[null,null,null,"User entry: Fuel use / emission factor values"," "]
[null,null,null,"Auto calculated value:"]
[]
[]
[null,"Emissions from Transportation and Mobile Equipment"]
[]
[null,null,null,null,null,"Quantity of Fuel burned","Units of Fuel Quantity","CO2 Emission Factor\nEmission factors from VCR shown below","CH4 Emission Factor\nEmission factors from VCR shown below","N2O Emission Factor\nEmission factors from VCR shown below","CO2 emissions in metric tonnes","CH4 emissions in metric tonnes","N2O emissions in metric tonnes"]
[null,null,null,null,null,null,null,"IMPORTANT! For equations to function correctly, numerator of emission factors must be in terms of kg of GHG and denominator must match units of fuel quantity!!",null,null,null,null,null,null,{"$f":"IF(AND(O20>0,O22>0),\"Enter mpg OR l/100km, not both!\",\"\")","v":""}]
[null,null,null,"Example: Heavy duty truck fleet","Diesel",100000,"liter",2.73,1.2E-4,8.0000000000000007E-5,{"$f":"IF(F17=\"\",\"\",F17*H17/1000)","v":273},{"$f":"IF(F17=\"\",\"\",F17*I17/1000)","v":1.2E-2},{"$f":"IF(F17=\"\",\"\",F17*J17/1000)","v":8.0000000000000002E-3}]
[null,null,null,"Source Description","Fuel Type","Fuel Quantity","Quantity Units","CO2 Em. Factor","CH4 Em. Factor","N2O Em. Factor","CO2 Emissions (tonne CO2)","CH4 Emissions (tonne CH4)","N2O Emissions (tonne N2O)",null,"Optional Calculator"]
[null,null,null,null,null,null,null,null,null,null,{"$f":"IF(F19=\"\",\"\",F19*H19/1000)","v":""},{"$f":"IF(F19=\"\",\"\",F19*I19/1000)","v":""},{"$f":"IF(F19=\"\",\"\",F19*J19/1000)","v":""},null,1000," = Distance traveled","<<< enter this value"]
[null,null,null,null,null,null,null,null,null,null,"","","",null,0," = miles per gallon"]
[null,null,null,null,null,null,null,null,null,null,"","","",null,null,"        OR","<<< enter one of these"]
[null,null,null,null,null,null,null,null,null,null,"","","",null,2," = litres per 100 km"]
[null,null,null,null,null,null,null,null,null,null,"","","",null,{"$f":"IF(AND(O20>0,O22>0),\"Error\",IF(O20>0,O19/O20,O19/100*O22))","v":20},{"$f":"IF(O20>0,\"Gallons used\",\"litres used\")","v":"litres used"},"<<< calculated"]
[null,null,null,null,null,null,null,null,null,null,"","",""]
[null,null,null,null,null,null,null,null,null,null,"","",""]
[null,null,null,null,null,null,null,null,null,null,"","",""]
[null,null,null,null,null,null,null,null,null,null,"","",""]
[null,null,null,null,null,null,null,null,null,null,"","",""]
[null,null,null,null,null,null,null,null,null,null,"","",""]
[null,null,null,null,null,null,null,null,null,null,"","",""]
[null,null,null,null,null,null,null,null,null,null,"","",""]
[null,null,null,null,null,null,null,null,null,null,"","",""]
[null,null,null,null,null,null,null,null,null,null,"","",""]
[null,null,null,null,null,null,null,null,null,null,"","",""]
[null,null,null,null,null,null,null,null,null,null,"","",""]
[null,null,null,null,null,null,null,null,null,null,"","",""]
[null,null,null,null,null,null,null,null,null,null,"","",""]
[null,null,null,null,null,null,null,null,null,null,"","",""]
[null,null,null,null,null,null,null,null,null,null,"","",""]
[null,null,null,null,null,null,null,null,null,null,"","",""]
[null,null,null,null,null,null,null,null,null,null,"","",""]
[null,null,null,null,null,null,null,null,null,null,"","",""]
[null,null,null,null,null,null,null,null,null,null,"","",""]
[]
[null,null,null,"Note, if the Visual Basic forms are used to enter data, custom emission factors will be identified with italic text in the table above (default emission factors will be in normal font).",null,null,null,null,null,null,"tonnes CO2","tonnes CH4","tonnes N2O"]
[null,null,null,null,null,null,null,"Total transportation emissons based on fuel use >>>",null,null,{"$f":"SUM(K19:K43)","v":0},{"$f":"SUM(L19:L43)","v":0},{"$f":"SUM(M19:M43)","v":0}]
[]
[]
[]
[]
[]
[null,null,null,"Emission Factors for Common Transportation Fuels\n(taken from Canadian GHG Challenge Registry Guide to Entity & Facility-Based Reporting, Version 4.0, February 2005, Table 5, p. 26."]
[]
[]
[]
[null,null,null,"Fuel type","CO2 Emission Factor","CH4 Emission Factor","N2O Emission Factor"]
[]
[null,null,null,"Car (Gasoline)","2.360 kg/l","0.00012 kg/l","0.00026 kg/l"]
[null,null,null,"Car (E10 Ethanol blend gasoline)","2.124 kg/l","0.00012 kg/l","0.00026 kg/l"]
[null,null,null,"Car (Diesel)","2.730 kg/l","0.00005 kg/l","0.0002 kg/l"]
[null,null,null,"Light truck (Gasoline)","2.360 kg/l","0.00022 kg/l","0.00041 kg/l"]
[null,null,null,"Light Truck (E10 Ethanol blend gasoline)","2.124 kg/l","0.00022 kg/l","0.00041 kg/l"]
[null,null,null,"Light Truck (Diesel)","2.730 kg/l","0.00007 kg/l","0.0002 kg/l"]
[null,null,null,"Heavy Duty Vehicle (Gasoline)","2.360 kg/l","0.00017 kg/l","0.001 kg/l"]
[null,null,null,"Heavy Duty (E10 Ethanol blend gasoline)","2.124 kg/l","0.00017 kg/l","0.001 kg/l"]
[null,null,null,"Heavy Duty Truck (Diesel)","2.730 kg/l","0.00012 kg/l","0.00008 kg/l"]
[null,null,null,"Motorcycle (Gasoline)","2.360 kg/l","0.0014 kg/l","0.000046 kg/l"]
[null,null,null,"Motorcycle (E10 Ethanol blend gasoline)","2.124 kg/l","0.0014 kg/l","0.000046 kg/l"]
[null,null,null,"Propane Vehicles","1.500 kg/l","0.00052 kg/l","0.000028 kg/l"]
[null,null,null,"Natural Gas Vehicles","2.758 kg/kg","0.03210 kg/kg","0.00009 kg/kg"]
[null,null,null,"Off-Road Vehicles (Gasoline)","2.360 kg/l","0.0027 kg/l","0.00005 kg/l"]
[null,null,null,"Off-Road (E10 Ethanol blend gasoline)","2.124 kg/l","0.0027 kg/l","0.00005 kg/l"]
[null,null,null,"Off-Road Vehicles (Diesel)","2.730 kg/l","0.00014 kg/l","0.0011 kg/l"]
[null,null,null,"Railroad Locomotives (Diesel)","2.730 kg/l","0.00015 kg/l","0.0011 kg/l"]
[null,null,null,"Boats (Gasoline)","2.360 kg/l","0.0013 kg/l","0.00006 kg/l"]
[null,null,null,"Ships (Diesel)","2.730 kg/l","0.00015 kg/l","0.00100 kg/l"]
[null,null,null,"Ships (Light 'Distillate' Oil)","2.830 kg/l","0.0003 kg/l","0.00007 kg/l"]
[null,null,null,"Ships (Heavy 'Residual' Oil)","3.090 kg/l","0.0003 kg/l","0.00008 kg/l"]
[null,null,null,"Conventional Aircraft (Aviation Gasoline)","2.330 kg/l","0.00219 kg/l","0.00023 kg/l"]
[null,null,null,"Jet Aircraft (Aviation Turbo Fuel)","2.550 kg/l","0.00008 kg/l","0.00025 kg/l"]

{"sheet":"Waste Management","index":5,"n_rows":159,"n_cols":57,"rows_kept":159,"cut":false,"hidden":false,"merged":[[142,4,142,8],[4,1,4,9],[13,2,13,5],[14,2,14,5],[46,9,46,12],[32,4,32,9],[30,2,30,10],[158,3,158,7],[49,2,49,11],[44,9,44,12],[8,1,8,2],[9,1,9,2],[10,1,10,2],[28,6,28,9],[16,4,16,10],[32,10,32,13],[56,3,56,5],[116,9,116,12],[154,3,154,7],[127,4,127,9],[140,2,140,5],[124,2,124,5],[139,4,139,8]]}
[null,null,"Waste Management"]
[null,null,"For landfills and anaerobic wastewater treatment and sludge digestion systems"]
[null,null,"Note: Scroll down the page to find the spreadsheet for anaerobic treatment systems"]
[]
[null,"These spreadsheets include significant amounts of material copied from other WRI and WBCSD calculation tools. \n Intellectual property rights of the WRI and WBCSD calculation tools belong to WRI and WBCSD, unless stated otherwise."]
[]
[]
[null,"EXPLANATION OF CELL COLOUR SCHEME"]
[null,"User entry: Source description"]
[null,"User entry: Data and parameter values"]
[null,"Auto calculated value:"]
[]
[]
[null,null,"Methane emissions from landfills\nNote: Use only one of the following methods for each landfill."]
[null,null,"Method 1 - For landfills with low permeability caps and effective gas recovery systems \nwhere measurements are made of amounts of gas collected"]
[]
[null,null,null,null,"Step 1"]
[null,null,null,null,"A","B","C","D","E","F","G"]
[null,null,null,null,"Quantity of gas collected\n[dry standard cubic meters/yr]","Efficiency of gas collection system\n[default = 0.75]","Fraction of collected gas that is burned\n[default = 1.0]","Methane content of gas\n[default = 0.5]","Fraction of uncollected methane that oxidizes in the landfill cover\n[default = 0.1]","Quantity of methane released\n[dry standard cubic meters/yr]","\nMethane emissions in metric tonnes "]
[null,null,null,null,null,null,null,null,null,"F=((A/B)*(1-B)*D*(1-E))+(A*D*(1-C))","G = F * [ 0.72 kg / standard cubic meter ] / 1000"]
[null,null,"Example: Landfill A","Mill sludge, ash and misc.",820000,0.75,0.9,0.47,0.1,{"$f":"((E21/F21)*(1-F21)*H21*(1-I21))+(E21*H21*(1-G21))","v":154160},{"$f":"J21*0.72/1000","v":110.9952}]
[null,null,"Landfill description","Waste type","Gas Quantity","Collect. Eff.","Fract. burned","CH4 content","Fract. ox. in cover","CH4 released","Emissions (tonne CH4)"]
[null,null,null,null,null,null,null,null,null,{"$f":"IF(E23=0,\"\",((E23/F23)*(1-F23)*H23*(1-I23))+(E23*H23*(1-G23)))","v":""},{"$f":"IF(E23=\"\",\"\",J23*0.72/1000)","v":""}]
[null,null,null,null,null,null,null,null,null,{"$f":"IF(E24=0,\"\",((E24/F24)*(1-F24)*H24*(1-I24))+(E24*H24*(1-G24)))","v":""},{"$f":"IF(E24=\"\",\"\",J24*0.72/1000)","v":""}]
[null,null,null,null,null,null,null,null,null,{"$f":"IF(E25=0,\"\",((E25/F25)*(1-F25)*H25*(1-I25))+(E25*H25*(1-G25)))","v":""},{"$f":"IF(E25=\"\",\"\",J25*0.72/1000)","v":""}]
[null,null,null,null,null,null,null,null,null,{"$f":"IF(E26=0,\"\",((E26/F26)*(1-F26)*H26*(1-I26))+(E26*H26*(1-G26)))","v":""},{"$f":"IF(E26=\"\",\"\",J26*0.72/1000)","v":""}]
[null,null,null,null,null,null,null,null,null,{"$f":"IF(E27=0,\"\",((E27/F27)*(1-F27)*H27*(1-I27))+(E27*H27*(1-G27)))","v":""},{"$f":"IF(E27=\"\",\"\",J27*0.72/1000)","v":""}]
[]
[null,null,null,null,null,null,"Step 2: Sum mill landfill methane emissions from Method 1: ",null,null,null,{"$f":"SUM(K23:K27)","v":0},"metric tonnes CH4"]
[null,null,"Method 2 - For landfills that cannot use Method 1.  "]
[null,null,"Method 2 is applicable to landfills where the amounts of waste deposited are reasonably constant from year-to-year \nand the landfill design has not been changed in ways that would substantially alter landfill gas releases."]
[]
[null,null,null,null,"Step 1",null,null,null,null,null,"Step 2"]
[null,null,null,null,"A","B","C","D","E","F","G","H","I","J","K"]
[null,null,null,null,"Annual waste deposits\n[Wet metric tonnes / year]","Ultimate Methane Potential, Lo, in\ncubic meters methane per dry metric tonne waste\n[default for mill waste = 100 m3/wet Mg]","First order methane generation rate constant, k\n[default for mill waste = 0.03 per year","Years since landfill opened","Years since landfill stopped receiving waste","Quantity of methane generated\n[dry standard cubic meters/yr]","Fraction of uncollected methane that oxidizes in the landfill cover\n[default = 0.1]","Fraction of landfill gas that is collected","Fraction of collected landfill gas that is burned","Methane emissions in cubic meters per year","\n Methane emissions in metric tonnes "]
[null,null,null,null,null,null,null,null,null,"F = A * B * (e^(-k*E) - e^(-k*D))",null,null,null,"J = (F*(1-H)*(1-G))+(F*H*(1-I))","K = J * [ 0.72 kg / standard cubic meter ] / 1000"]
[null,null,"Example: Landfill A","Mill sludge, ash and misc.",17500,100,0.03,20,0,{"$f":"E37*F37*(EXP(-G37*I37)-EXP(-G37*H37))","v":789579.6368354538},0.1,0,0,{"$f":"(J37*(1-L37)*(1-K37))+(J37*L37*(1-M37))","v":710621.67315190844},{"$f":"N37*0.72/1000","v":511.64760466937406}]
[null,null,"Landfill description","Waste type","Deposit (tonne/yr)","Lo","1st order rate const","Yrs since opened","Yrs since closed","CH4 generated (dry std m3)","Fract. ox. in cover","Fract. collected","Fraction burned",null,"Direct emissions (tonne CH4)"]
[null,null,null,null,null,null,null,null,null,{"$f":"IF(E39=\"\",\"\",E39*F39*(EXP(-G39*I39)-EXP(-G39*H39)))","v":""},null,null,null,{"$f":"IF(J39=\"\",\"\",(J39*(1-L39)*(1-K39))+(J39*L39*(1-M39)))","v":""},{"$f":"IF(N39=\"\",\"\",N39*0.72/1000)","v":""}]
[null,null,null,null,null,null,null,null,null,{"$f":"IF(E40=\"\",\"\",E40*F40*(EXP(-G40*I40)-EXP(-G40*H40)))","v":""},null,null,null,{"$f":"IF(J40=\"\",\"\",(J40*(1-L40)*(1-K40))+(J40*L40*(1-M40)))","v":""},{"$f":"IF(N40=\"\",\"\",N40*0.72/1000)","v":""}]
[null,null,null,null,null,null,null,null,null,{"$f":"IF(E41=\"\",\"\",E41*F41*(EXP(-G41*I41)-EXP(-G41*H41)))","v":""},null,null,null,{"$f":"IF(J41=\"\",\"\",(J41*(1-L41)*(1-K41))+(J41*L41*(1-M41)))","v":""},{"$f":"IF(N41=\"\",\"\",N41*0.72/1000)","v":""}]
[null,null,null,null,null,null,null,null,null,{"$f":"IF(E42=\"\",\"\",E42*F42*(EXP(-G42*I42)-EXP(-G42*H42)))","v":""},null,null,null,{"$f":"IF(J42=\"\",\"\",(J42*(1-L42)*(1-K42))+(J42*L42*(1-M42)))","v":""},{"$f":"IF(N42=\"\",\"\",N42*0.72/1000)","v":""}]
[null,null,null,null,null,null,null,null,null,{"$f":"IF(E43=\"\",\"\",E43*F43*(EXP(-G43*I43)-EXP(-G43*H43)))","v":""},null,null,null,{"$f":"IF(J43=\"\",\"\",(J43*(1-L43)*(1-K43))+(J43*L43*(1-M43)))","v":""},{"$f":"IF(N43=\"\",\"\",N43*0.72/1000)","v":""}]
[]
[null,null,null,null,null,null,null,null,null,"Step 3: Sum mill landfill methane emissions from Method 2: ",null,null,null,null,{"$f":"SUM(O39:O43)","v":0},"metric tonnes CH4"]
[]
[null,null,"Sum of emissions from landfills >>",null,null,null,null,null,null,"Sum of mill landfill methane emissions from Methods 1, 2 & 3: ",null,null,null,null,{"$f":"IF(OR(G57=\"Invalid Year\",ISERROR(G57)),+K29+O45,+K29+O45+G57)","v":0},"metric tonnes CH4"]
[]
[null,null,"Method 3 - For landfills that cannot use Methods 1 or 2.  "]
[null,null,"Method 3 is applicable to landfills where the amounts of waste deposited vary substantially from year-to-year \nand the landfill design has changed in ways that would substantially alter landfill gas releases.\n\nThis table for Method 3 can only estimate emissions from a single landfill.  If emissions from multiple landfills are to be estimated, \nmake a separate copy of this Excel worksheet for each additional landfill to be considered.  In this case, the user will have to manually \nsum all landfill emission estimates and enter this value in the appropriate cell of the \"Summary Table\" worksheet."]
[null,null,"Landfill description","Waste type"]
[]
[]
[null,null,null,null,null,"First year that material was deposited in landfill (or that data is available):"]
[null,null,null,null,null,"Last year that material was deposited in landfill (or that data is available):"]
[null,null,null,null,null,"Year of interest for emission estimate:"]
[null,null,null,"Estimated Emissions [metric tonnes CH4]:",null,null,{"$f":"IF(G56>=G54,IF(ISERROR(LOOKUP(G56,H59:BE59,H61:BE61)),0,LOOKUP(G56,H59:BE59,H61:BE61)),\"Invalid Year\")","v":0},"metric tonnes CH4"]
[]
[null,null,null,null,null,null,"Year Emissions Estimated",{"$f":"+IF(G54=\"\",\"\",G54)","v":""},{"$f":"+IF(ISERROR(AND(H59+1>$G55,H59+1>$G56)),\"\",IF((AND(H59+1>$G55,H59+1>$G56)),\"\",H59+1))","v":""},"","","","","","","","","","","","","","","","","","","","","","","","","","","","","","","",{"$f":"+IF(ISERROR(AND(AN59+1>$G55,AN59+1>$G56)),\"\",IF((AND(AN59+1>$G55,AN59+1>$G56)),\"\",AN59+1))","v":""},"","","","","","","","","","","","","","","",""]
[null,null,null,null,null,null,"Methane emissions in metric tonnes CO2 equivalents ",{"$f":"IF(ISERROR(H61*GWPCH4),\"\",H61*GWPCH4)","v":0},0,0,0,0,0,0,0,0,0,0,0,0,0,0,0,0,0,0,0,0,0,0,0,0,0,0,0,0,0,0,0,{"$f":"IF(ISERROR(AN61*GWPCH4),\"\",AN61*GWPCH4)","v":0},0,0,0,0,0,0,0,0,0,0,0,0,0,0,0,0,0]
[null,null,null,null,null,null,"Methane emissions in metric tonnes CH4",{"$f":"IF(ISERROR(H62*0.0007167),\"\",H62*0.0007167)","v":0},{"$f":"IF(ISERROR(I62*0.0007167),\"\",I62*0.0007167)","v":0},0,0,0,0,0,0,0,0,0,0,0,0,0,0,0,0,0,0,0,0,0,0,0,0,0,0,0,0,0,0,0,0,0,0,0,0,0,0,0,0,0,0,0,0,0,0,0,0]
[null,null,null,null,null,null,"Methane emissions in cubic meters per year",{"$f":"IF(ISERROR(H63*((1-H65)*(1-H64)+(H65*(1-H66)))),\"\",H63*((1-H65)*(1-H64)+(H65*(1-H66))))","v":0},{"$f":"IF(ISERROR(I63*((1-I65)*(1-I64)+(I65*(1-I66)))),\"\",I63*((1-I65)*(1-I64)+(I65*(1-I66))))","v":0},0,0,0,0,0,0,0,0,0,0,0,0,0,0,0,0,0,0,0,0,0,0,0,0,0,0,0,0,0,0,0,0,0,0,0,0,0,0,0,0,0,0,0,0,0,0,0,0]
[null,null,null,null,null,null,"Quantity of methane generated\n[dry standard cubic meters/yr]",{"$f":"IF(ISERROR(SUM(H$67:H$116)),\"\",SUM(H$67:H$116))","v":0},{"$f":"IF(ISERROR(SUM(I$67:I$116)),\"\",SUM(I$67:I$116))","v":0},0,0,0,0,0,0,0,0,0,0,0,0,0,0,0,0,0,0,0,0,0,0,0,0,0,0,0,0,0,0,0,0,0,0,0,0,0,0,0,0,0,0,0,0,0,0,0,0]
[null,null,null,"Data for Method 3 - Landfills",null,null,"Fraction of uncollected methane that oxidizes in the landfill cover\n[default = 0.1]"]
[null,null,null,null,null,null,"Fraction of landfill gas that is collected"]
[null,null,"Year of Placement\n(auto-calculated from information entered above in cells G53 and G54)","Quantity Placed\n[Wet metric tons]","Ultimate Methane Potential, Lo, \n[default for mill waste\nLo =100m3/wet Mg]","First order methane generation rate constant, k\n[default for mill waste\nk = 0.03/yr]","Fraction of collected landfill gas that is burned"]
[null,null,{"$f":"+IF(H$59<=$G$55,H$59,\"\")","v":""},null,null,null,null,null,{"$f":"IF(ISERROR($F67*$E67*EXP(-$F67*(I$59-$C67))*$D67),\"\",$F67*$E67*EXP(-$F67*(I$59-$C67))*$D67)","v":""},{"$f":"IF(ISERROR($F67*$E67*EXP(-$F67*(J$59-$C67))*$D67),\"\",$F67*$E67*EXP(-$F67*(J$59-$C67))*$D67)","v":""},"","","","","","","","","","","","","","","","","","","","","","","","","","","","","","","","","","","","","","","","","","","","","","",""]
[null,null,{"$f":"+IF(I$59<=$G$55,I$59,\"\")","v":""},null,null,null,null,null,null,"","","","","","","","","","","","","","","","","","","","","",{"$f":"IF(ISERROR($F68*$E68*EXP(-$F68*(AE$59-$C68))*$D68),\"\",$F68*$E68*EXP(-$F68*(AE$59-$C68))*$D68)","v":""},"","","","","","","","","","","",{"$f":"IF(ISERROR($F68*$E68*EXP(-$F68*(AQ$59-$C68))*$D68),\"\",$F68*$E68*EXP(-$F68*(AQ$59-$C68))*$D68)","v":""},"","","","","","","",{"$f":"IF(ISERROR($F68*$E68*EXP(-$F68*(AY$59-$C68))*$D68),\"\",$F68*$E68*EXP(-$F68*(AY$59-$C68))*$D68)","v":""},"","","","","",""]
[null,null,{"$f":"+IF(J$59<=$G$55,J$59,\"\")","v":""},null,null,null,null,null,null,null,"","","","","","","","","","","","","","","","","","","","","","","","","","","","","","","","","","","","","","","","","","","","","","",""]
[null,null,{"$f":"+IF(K$59<=$G$55,K$59,\"\")","v":""},null,null,null,null,null,null,null,null,"","","","","","","","","","","","","","","","","","","","","","","","","","","","","","","","","","","","","","","","","","","","","",""]
[null,null,{"$f":"+IF(L$59<=$G$55,L$59,\"\")","v":""},null,null,null,null,null,null,null,null,null,"","","","","","","","","","","","","","","","","","","","","","","","","","","","","","","","","","","","","","","","","","","","",{"$f":"IF(ISERROR($F71*$E71*EXP(-$F71*(BE$59-$C71))*$D71),\"\",$F71*$E71*EXP(-$F71*(BE$59-$C71))*$D71)","v":""}]
[null,null,{"$f":"+IF(M$59<=$G$55,M$59,\"\")","v":""},null,null,null,null,null,null,null,null,null,null,"","","","","","","","","","","","","","","","","","","","","","","","","","","","","","","","","","","","","","","","","","","",""]
[null,null,{"$f":"+IF(N$59<=$G$55,N$59,\"\")","v":""},null,null,null,null,null,null,null,null,null,null,null,"","","","","","","","","","","","","","","","","","","","","","","","","","","","","","","","","","","","","","","","","","",""]
[null,null,{"$f":"+IF(O$59<=$G$55,O$59,\"\")","v":""},null,null,null,null,null,null,null,null,null,null,null,null,"","","","","","","","","","","","","","","","","","","","","","","","","","","","","","","","","","","","","","","","","",""]
[null,null,{"$f":"+IF(P$59<=$G$55,P$59,\"\")","v":""},null,null,null,null,null,null,null,null,null,null,null,null,null,"","","","","","","","","","","","","","","","","","","","","","","","","","","","","","","","","","","","","","","","",""]
[null,null,{"$f":"+IF(Q$59<=$G$55,Q$59,\"\")","v":""},null,null,null,null,null,null,null,null,null,null,null,null,null,null,"","","","","","","","","","","","","","","","","","","","","","","","","","","","","","","","","","","","","","","",""]
[null,null,{"$f":"+IF(R$59<=$G$55,R$59,\"\")","v":""},null,null,null,null,null,null,null,null,null,null,null,null,null,null,null,"","","","","","","","","","","","","","","","","","","","","","","","","","","","","","","","","","","","","","",""]
[null,null,{"$f":"+IF(S$59<=$G$55,S$59,\"\")","v":""},null,null,null,null,null,null,null,null,null,null,null,null,null,null,null,null,"","","","","","","","","","","","","","","","","","","","","","","","","","","","","","","","","","","","","",""]
[null,null,{"$f":"+IF(T$59<=$G$55,T$59,\"\")","v":""},null,null,null,null,null,null,null,null,null,null,null,null,null,null,null,null,null,"","","","","","","","","","","","","","","","","","","","","","","","","","","","","","","","","","","","",""]
[null,null,{"$f":"+IF(U$59<=$G$55,U$59,\"\")","v":""},null,null,null,null,null,null,null,null,null,null,null,null,null,null,null,null,null,null,"","","","","","","","",{"$f":"IF(ISERROR($F80*$E80*EXP(-$F80*(AD$59-$C80))*$D80),\"\",$F80*$E80*EXP(-$F80*(AD$59-$C80))*$D80)","v":""},"","","","","","","","","","","","","","","","","","","","","","","","","","",""]
[null,null,{"$f":"+IF(V$59<=$G$55,V$59,\"\")","v":""},null,null,null,null,null,null,null,null,null,null,null,null,null,null,null,null,null,null,null,"","","","","","","","","","","","","","","","","","","",{"$f":"IF(ISERROR($F81*$E81*EXP(-$F81*(AP$59-$C81))*$D81),\"\",$F81*$E81*EXP(-$F81*(AP$59-$C81))*$D81)","v":""},"","","","","","","","","","","","","","",""]
[null,null,{"$f":"+IF(W$59<=$G$55,W$59,\"\")","v":""},null,null,null,null,null,null,null,null,null,null,null,null,null,null,null,null,null,null,null,null,"","","","","","","","","","","","","","","","","","","","","","","","","","","","","","","","","",""]
[null,null,{"$f":"+IF(X$59<=$G$55,X$59,\"\")","v":""},null,null,null,null,null,null,null,null,null,null,null,null,null,null,null,null,null,null,null,null,null,{"$f":"IF(ISERROR($F83*$E83*EXP(-$F83*(Y$59-$C83))*$D83),\"\",$F83*$E83*EXP(-$F83*(Y$59-$C83))*$D83)","v":""},"","","","","","","","","","","","","","","","","","","","","","","","","","","","","","","",""]
[null,null,{"$f":"+IF(Y$59<=$G$55,Y$59,\"\")","v":""},null,null,null,null,null,null,null,null,null,null,null,null,null,null,null,null,null,null,null,null,null,null,"","","","","","","","","","","","","","","","","","","","","","","","","","","","","","","",""]
[null,null,{"$f":"+IF(Z$59<=$G$55,Z$59,\"\")","v":""},null,null,null,null,null,null,null,null,null,null,null,null,null,null,null,null,null,null,null,null,null,null,null,"","","","","","","","","","","","","","","","","","","","","","","",{"$f":"IF(ISERROR($F85*$E85*EXP(-$F85*(AX$59-$C85))*$D85),\"\",$F85*$E85*EXP(-$F85*(AX$59-$C85))*$D85)","v":""},"","","","","","",""]
[null,null,{"$f":"+IF(AA$59<=$G$55,AA$59,\"\")","v":""},null,null,null,null,null,null,null,null,null,null,null,null,null,null,null,null,null,null,null,null,null,null,null,null,"","","","","","","","","","","","","","","","","","","","","","","","","","","","","",""]
[null,null,{"$f":"+IF(AB$59<=$G$55,AB$59,\"\")","v":""},null,null,null,null,null,null,null,null,null,null,null,null,null,null,null,null,null,null,null,null,null,null,null,null,null,"","","","","","","","","","","","","","","","","","","","","","","","","","","","",""]
[null,null,{"$f":"+IF(AC$59<=$G$55,AC$59,\"\")","v":""},null,null,null,null,null,null,null,null,null,null,null,null,null,null,null,null,null,null,null,null,null,null,null,null,null,null,"","","","","","","","","","","","","","","","","","","","","","","","","","","",""]
[null,null,{"$f":"+IF(AD$59<=$G$55,AD$59,\"\")","v":""},null,null,null,null,null,null,null,null,null,null,null,null,null,null,null,null,null,null,null,null,null,null,null,null,null,null,null,"","","","","","","","","","","","","","","","","","","","","","","","","","",""]
[null,null,{"$f":"+IF(AE$59<=$G$55,AE$59,\"\")","v":""},null,null,null,null,null,null,null,null,null,null,null,null,null,null,null,null,null,null,null,null,null,null,null,null,null,null,null,null,{"$f":"IF(ISERROR($F90*$E90*EXP(-$F90*(AF$59-$C90))*$D90),\"\",$F90*$E90*EXP(-$F90*(AF$59-$C90))*$D90)","v":""},"","","","","","","","","","","","","","","","","","","","","","","","",""]
[null,null,{"$f":"+IF(AF$59<=$G$55,AF$59,\"\")","v":""},null,null,null,null,null,null,null,null,null,null,null,null,null,null,null,null,null,null,null,null,null,null,null,null,null,null,null,null,null,"","","","","","","","","","","","","","","","","","","","","","","","",""]
[null,null,{"$f":"+IF(AG$59<=$G$55,AG$59,\"\")","v":""},null,null,null,null,null,null,null,null,null,null,null,null,null,null,null,null,null,null,null,null,null,null,null,null,null,null,null,null,null,null,"","","","","","","","","","","","","","","","","","","","","","","",""]
[null,null,{"$f":"+IF(AH$59<=$G$55,AH$59,\"\")","v":""},null,null,null,null,null,null,null,null,null,null,null,null,null,null,null,null,null,null,null,null,null,null,null,null,null,null,null,null,null,null,null,"","","","","","","","","","","","","","","","","","","","","","",""]
[null,null,{"$f":"+IF(AI$59<=$G$55,AI$59,\"\")","v":""},null,null,null,null,null,null,null,null,null,null,null,null,null,null,null,null,null,null,null,null,null,null,null,null,null,null,null,null,null,null,null,null,"","","","","","","","","","","","","","","","","","","","","",""]
[null,null,{"$f":"+IF(AJ$59<=$G$55,AJ$59,\"\")","v":""},null,null,null,null,null,null,null,null,null,null,null,null,null,null,null,null,null,null,null,null,null,null,null,null,null,null,null,null,null,null,null,null,null,"","","","","","","","","","","","","","","","","","","","",""]
[null,null,{"$f":"+IF(AK$59<=$G$55,AK$59,\"\")","v":""},null,null,null,null,null,null,null,null,null,null,null,null,null,null,null,null,null,null,null,null,null,null,null,null,null,null,null,null,null,null,null,null,null,null,"","","","","","","","","","","","","","","","","","","",""]
[null,null,{"$f":"+IF(AL$59<=$G$55,AL$59,\"\")","v":""},null,null,null,null,null,null,null,null,null,null,null,null,null,null,null,null,null,null,null,null,null,null,null,null,null,null,null,null,null,null,null,null,null,null,null,"","","","","","","","","","","","","","","","","","",""]
[null,null,{"$f":"+IF(AM$59<=$G$55,AM$59,\"\")","v":""},null,null,null,null,null,null,null,null,null,null,null,null,null,null,null,null,null,null,null,null,null,null,null,null,null,null,null,null,null,null,null,null,null,null,null,null,"","","","","","","","","","","","","","","","","",""]
[null,null,{"$f":"+IF(AN$59<=$G$55,AN$59,\"\")","v":""},null,null,null,null,null,null,null,null,null,null,null,null,null,null,null,null,null,null,null,null,null,null,null,null,null,null,null,null,null,null,null,null,null,null,null,null,null,"","","","","","","","","","","","","","","","",""]
[null,null,{"$f":"+IF(AO$59<=$G$55,AO$59,\"\")","v":""},null,null,null,null,null,null,null,null,null,null,null,null,null,null,null,null,null,null,null,null,null,null,null,null,null,null,null,null,null,null,null,null,null,null,null,null,null,null,"","","","","","","","","","","","","","","",""]
[null,null,{"$f":"+IF(AP$59<=$G$55,AP$59,\"\")","v":""},null,null,null,null,null,null,null,null,null,null,null,null,null,null,null,null,null,null,null,null,null,null,null,null,null,null,null,null,null,null,null,null,null,null,null,null,null,null,null,"","","","","","","","","","","","","","",""]
[null,null,{"$f":"+IF(AQ$59<=$G$55,AQ$59,\"\")","v":""},null,null,null,null,null,null,null,null,null,null,null,null,null,null,null,null,null,null,null,null,null,null,null,null,null,null,null,null,null,null,null,null,null,null,null,null,null,null,null,null,{"$f":"IF(ISERROR($F102*$E102*EXP(-$F102*(AR$59-$C102))*$D102),\"\",$F102*$E102*EXP(-$F102*(AR$59-$C102))*$D102)","v":""},"","","","","","","","","","","","",""]
[null,null,{"$f":"+IF(AR$59<=$G$55,AR$59,\"\")","v":""},null,null,null,null,null,null,null,null,null,null,null,null,null,null,null,null,null,null,null,null,null,null,null,null,null,null,null,null,null,null,null,null,null,null,null,null,null,null,null,null,null,"","","","","","","","","","","","",""]
[null,null,{"$f":"+IF(AS$59<=$G$55,AS$59,\"\")","v":""},null,null,null,null,null,null,null,null,null,null,null,null,null,null,null,null,null,null,null,null,null,null,null,null,null,null,null,null,null,null,null,null,null,null,null,null,null,null,null,null,null,null,"","","","","","","","","","","",""]
[null,null,{"$f":"+IF(AT$59<=$G$55,AT$59,\"\")","v":""},null,null,null,null,null,null,null,null,null,null,null,null,null,null,null,null,null,null,null,null,null,null,null,null,null,null,null,null,null,null,null,null,null,null,null,null,null,null,null,null,null,null,null,"","","","","","","","","","",""]
[null,null,{"$f":"+IF(AU$59<=$G$55,AU$59,\"\")","v":""},null,null,null,null,null,null,null,null,null,null,null,null,null,null,null,null,null,null,null,null,null,null,null,null,null,null,null,null,null,null,null,null,null,null,null,null,null,null,null,null,null,null,null,null,"","","","","","","","","",""]
[null,null,{"$f":"+IF(AV$59<=$G$55,AV$59,\"\")","v":""},null,null,null,null,null,null,null,null,null,null,null,null,null,null,null,null,null,null,null,null,null,null,null,null,null,null,null,null,null,null,null,null,null,null,null,null,null,null,null,null,null,null,null,null,null,"","","","","","","","",""]
[null,null,{"$f":"+IF(AW$59<=$G$55,AW$59,\"\")","v":""},null,null,null,null,null,null,null,null,null,null,null,null,null,null,null,null,null,null,null,null,null,null,null,null,null,null,null,null,null,null,null,null,null,null,null,null,null,null,null,null,null,null,null,null,null,null,"","","","","","","",""]
[null,null,{"$f":"+IF(AX$59<=$G$55,AX$59,\"\")","v":""},null,null,null,null,null,null,null,null,null,null,null,null,null,null,null,null,null,null,null,null,null,null,null,null,null,null,null,null,null,null,null,null,null,null,null,null,null,null,null,null,null,null,null,null,null,null,null,"","","","","","",""]
[null,null,{"$f":"+IF(AY$59<=$G$55,AY$59,\"\")","v":""},null,null,null,null,null,null,null,null,null,null,null,null,null,null,null,null,null,null,null,null,null,null,null,null,null,null,null,null,null,null,null,null,null,null,null,null,null,null,null,null,null,null,null,null,null,null,null,null,{"$f":"IF(ISERROR($F110*$E110*EXP(-$F110*(AZ$59-$C110))*$D110),\"\",$F110*$E110*EXP(-$F110*(AZ$59-$C110))*$D110)","v":""},"","","","",""]
[null,null,{"$f":"+IF(AZ$59<=$G$55,AZ$59,\"\")","v":""},null,null,null,null,null,null,null,null,null,null,null,null,null,null,null,null,null,null,null,null,null,null,null,null,null,null,null,null,null,null,null,null,null,null,null,null,null,null,null,null,null,null,null,null,null,null,null,null,null,"","","","",""]
[null,null,{"$f":"+IF(BA$59<=$G$55,BA$59,\"\")","v":""},null,null,null,null,null,null,null,null,null,null,null,null,null,null,null,null,null,null,null,null,null,null,null,null,null,null,null,null,null,null,null,null,null,null,null,null,null,null,null,null,null,null,null,null,null,null,null,null,null,null,"","","",""]
[null,null,{"$f":"+IF(BB$59<=$G$55,BB$59,\"\")","v":""},null,null,null,null,null,null,null,null,null,null,null,null,null,null,null,null,null,null,null,null,null,null,null,null,null,null,null,null,null,null,null,null,null,null,null,null,null,null,null,null,null,null,null,null,null,null,null,null,null,null,null,"","",""]
[null,null,{"$f":"+IF(BC$59<=$G$55,BC$59,\"\")","v":""},null,null,null,null,null,null,null,null,null,null,null,null,null,null,null,null,null,null,null,null,null,null,null,null,null,null,null,null,null,null,null,null,null,null,null,null,null,null,null,null,null,null,null,null,null,null,null,null,null,null,null,null,"",""]
[null,null,{"$f":"+IF(BD$59<=$G$55,BD$59,\"\")","v":""},null,null,null,null,null,null,null,null,null,null,null,null,null,null,null,null,null,null,null,null,null,null,null,null,null,null,null,null,null,null,null,null,null,null,null,null,null,null,null,null,null,null,null,null,null,null,null,null,null,null,null,null,null,""]
[null,null,{"$f":"+IF(BE$59<=$G$55,BE$59,\"\")","v":""}]
[]
[]
[]
[]
[]
[]
[]
[]
[null,null,"Methane emissions from anaerobic wastewater \ntreatment or sludge digestion systems\nNote: Use only one of the following methods for each source."]
[null,null,"Method 1 - For anaerobic wastewater treatment and sludge digestion systems where gas is collected"]
[null,null,"NOTE: If the gas collection system is highly efficient and all gas is burned, the direct GHG emissions can be assumed to be zero."]
[null,null,null,null,"Step 1"]
[null,null,null,null,"A","B","C","D","E ","F"]
[null,null,null,null,"Quantity of gas collected\n[dry standard cubic meters/yr]","Efficiency of gas collection system\n[default = 1.0]","Fraction of collected gas that is burned\n[default = 1.0]","Methane content of gas\n[default = 0.5]","Quantity of methane released\n[dry standard cubic meters/yr]","\nMethane emissions in metric tonnes CH4"]
[null,null,null,null,null,null,null,null,"E=((A/B)*(1-B)*D)+(A*D*(1-C))","F = E * [ 0.72 kg / standard cubic meter ] / 1000"]
[null,null,"Example: System A","Anaerobic treatment system",1000,0.9,0.5,0.5,{"$f":"((E132/F132)*(1-F132)*H132)+(E132*H132*(1-G132))","v":305.55555555555554},{"$f":"I132*0.72/1000","v":0.21999999999999997}]
[null,null,"System description","Waste type","Quant. gas collected (std. dry m3)","Eff. of collection system","Fraction burned","CH4 content of gas","Em. (m3 CH4/yr)","Em. (tonne CH4)"]
[null,null,null,null,null,null,null,null,{"$f":"IF(F134=0,\"\",((E134/F134)*(1-F134)*H134)+(E134*H134*(1-G134)))","v":""},{"$f":"IF(I134=\"\",\"\",I134*0.72/1000)","v":""}]
[null,null,null,null,null,null,null,null,{"$f":"IF(F135=0,\"\",((E135/F135)*(1-F135)*H135)+(E135*H135*(1-G135)))","v":""},{"$f":"IF(I135=\"\",\"\",I135*0.72/1000)","v":""}]
[null,null,null,null,null,null,null,null,{"$f":"IF(F136=0,\"\",((E136/F136)*(1-F136)*H136)+(E136*H136*(1-G136)))","v":""},{"$f":"IF(I136=\"\",\"\",I136*0.72/1000)","v":""}]
[null,null,null,null,null,null,null,null,{"$f":"IF(F137=0,\"\",((E137/F137)*(1-F137)*H137)+(E137*H137*(1-G137)))","v":""},{"$f":"IF(I137=\"\",\"\",I137*0.72/1000)","v":""}]
[null,null,null,null,null,null,null,null,{"$f":"IF(F138=0,\"\",((E138/F138)*(1-F138)*H138)+(E138*H138*(1-G138)))","v":""},{"$f":"IF(I138=\"\",\"\",I138*0.72/1000)","v":""}]
[]
[null,null,null,null,"Step 2: Sum anaerobic wastewater or sludge treatment methane emissions from Method 1: ",null,null,null,null,{"$f":"SUM(J134:J138)","v":0},"metric tonnes CH4"]
[null,null,"Method 2 - For anaerobic wastewater treatment and sludge digestion systems \nwhere gas is NOT collected or the collection efficiency is not known."]
[]
[null,null,null,null,"Step 1"]
[null,null,null,null,"A","B","C","D","E"]
[null,null,null,null,"Amount of organic matter sent to treatment per year\n[kg BOD or COD per year]","Methane emission factor\n[default for mill wastes = 0.25 kg methane per kg COD in the feed or\n0.60 kg methane per kg BOD in the feed.\nUnits must match column A]","Amount of methane captured and burned\n[kg methane / yr]","Quantity of methane released\n[kg methane / yr]","\nMethane emissions in metric tonnes "]
[null,null,null,null,null,null,null,"D = (A * B) - C","E = D / 1000"]
[null,null,"Example: System B","Anaerobic treatment system",3000000,0.25,600000,{"$f":"E147*F147-G147","v":150000},{"$f":"H147/1000","v":150}]
[null,null,"System description","Waste type","Amount of organic matter (kg)","CH4 em. factor","CH4 burned (kg/yr)","Em (kg CH4/yr)","Em. (tonne CH4)"]
[null,null,null,null,null,null,null,{"$f":"IF(E149=\"\",\"\",E149*F149-G149)","v":""},{"$f":"IF(H149=\"\",\"\",H149/1000)","v":""}]
[null,null,null,null,null,null,null,{"$f":"IF(E150=\"\",\"\",E150*F150-G150)","v":""},{"$f":"IF(H150=\"\",\"\",H150/1000)","v":""}]
[null,null,null,null,null,null,null,{"$f":"IF(E151=\"\",\"\",E151*F151-G151)","v":""},{"$f":"IF(H151=\"\",\"\",H151/1000)","v":""}]
[null,null,null,null,null,null,null,{"$f":"IF(E152=\"\",\"\",E152*F152-G152)","v":""},{"$f":"IF(H152=\"\",\"\",H152/1000)","v":""}]
[null,null,null,null,null,null,null,{"$f":"IF(E153=\"\",\"\",E153*F153-G153)","v":""},{"$f":"IF(H153=\"\",\"\",H153/1000)","v":""}]
[]
[null,null,null,"Step 2: Sum anaerobic wastewater or sludge treatment methane emissions from Method 2: ",null,null,null,null,{"$f":"SUM(I149:I153)","v":0},"metric tonnes CH4"]
[]
[null,null,"Sum of emissions from anaerobic wastewater treatment and sludge digestion systems >>"]
[]
[null,null,null,"Sum anaerobic wastewater or sludge treatment methane emissions from Methods 1 and 2: ",null,null,null,null,{"$f":"(J140+I155)","v":0},"metric tonnes CH4"]

{"sheet":"Biomass Combustion CO2","index":6,"n_rows":44,"n_cols":10,"rows_kept":44,"cut":false,"hidden":false,"merged":[[43,3,43,8],[0,1,0,12],[4,1,4,6],[6,1,6,6],[8,1,8,6],[14,1,14,2],[12,1,12,2],[13,1,13,2],[19,4,19,5],[41,4,41,7]]}
[]
[]
[null,null,"Additional Information on Biomass"]
[null,null,"Estimating CO2 Emissions from Biomass Combustion."]
[null,"Many wood products manufacturing facilities generate more than half of their energy needs from biomass fuels recovered from the industry’s waste and process streams.  The CO2 generated when biomass fuels are burned is not included in GHG emission totals.  The GHG Protocol, however, requires that biomass-derived CO2 be reported as additional information.  This is the approach generally prescribed for national inventories by the United Nations Framework Convention on Climate Change."]
[]
[null,"Any increases or decreases in the amount of carbon sequestered by the forests are accounted for in the comprehensive forest accounting system.  This is the approach generally prescribed for national inventories by the United Nations Framework Convention on Climate Change.  Most international protocols including that of the Intergovernmental Panel on Climate Change (IPCC) have adopted the convention set out by the United Nations. "]
[]
[null,"Estimated Biomass Emissions:\nThe information reported below on biomass emissions is being supplied:\n\n To ensure that readers understand the entity’s overall energy profile in terms of both greenhouse gas emissions, and non-greenhouse gas emissions, and\n To provide awareness and understanding of how biomass fuels are generated and used in the manufacture of wood products.\n\nAlso, note that the information reported below is in conformance with the general greenhouse gas protocol designed by the World Resources Institute and the World Business Council for Sustainable Development.  Users of these calculation tools may elect to modify the format and type of information presented based on specific facility or company needs.\n"]
[]
[]
[null,"EXPLANATION OF CELL COLOUR SCHEME"]
[null,"User entry: Source / fuel description"]
[null,"User entry: Data and parameter values"]
[null,"Auto calculated value:"]
[]
[]
[]
[null,null,"Biomass Combustion Carbon Dioxide Emissions from Combustion of Wood or Bark"]
[null,null,null,null,"Step 1",null,"Step 2","Step 3"]
[null,null,null,null,"A1","A2","B","C"]
[null,null,null,null,"Quantity of fuel burned","Units of Fuel Quantity","Biomass combustion CO2 emission factor:\n[Suggested default value* is 1.51 kg CO2/kg dry wood]","Biomass combustion CO2 emissions in metric tonnes per year"]
[null,null,null,null,null,null,"IMPORTANT! For the equations to function correctly, the numerator of the emission factors must be in terms of kg of GHG and the denominator must match the units of fuel quantity!!","C = A1 * B / 1000"]
[null,null,"Example: Bark Boiler","Bark",500000,"kg",1.51,{"$f":"E24*G24/1000","v":755}]
[null,null,"Source description","Fuel type","Fuel Quant.","Em. Factor","Em. (lb CO2)","Em. (tonne carbon)"]
[null,null,null,null,null,null,null,{"$f":"IF(E26=\"\",\"\",E26*G26/1000)","v":""}]
[null,null,null,null,null,null,null,{"$f":"IF(E27=\"\",\"\",E27*G27/1000)","v":""}]
[null,null,null,null,null,null,null,""]
[null,null,null,null,null,null,null,""]
[null,null,null,null,null,null,null,""]
[null,null,null,null,null,null,null,""]
[null,null,null,null,null,null,null,""]
[null,null,null,null,null,null,null,""]
[null,null,null,null,null,null,null,""]
[null,null,null,null,null,null,null,""]
[null,null,null,null,null,null,null,""]
[null,null,null,null,null,null,null,""]
[null,null,null,null,null,null,null,""]
[null,null,null,null,null,null,null,""]
[null,null,null,null,null,null,null,""]
[]
[null,null,null,null,"Biomass Combustion CO2 from Combustion of Wood or Bark",null,null,null,{"$f":"SUM(H26:H40)","v":0},"Metric Tonnes CO2 /year"]
[]
[null,null,"Note:  ","* The emission factors for biomass fuels provided by VCR are not consistent with the factors published in the cited source of the VCR factors.  VCR indicates that \"these factors may be reviewed by Environment Canada and are for wood with high moisture content.\"  Because of the potential inaccuracies in the VCR factors, the factors provided herein were drawn directly from the cited source of the VCR factors (United States Environmental Protection Agency (USEPA).  2001.  AP-42 emission factors for wood residue combustion in boilers – Supplement G, July 2001.  Washington, DC: United States Environmental Protection Agency.)"]

{"sheet":"Indirect - Energy Imports","index":7,"n_rows":55,"n_cols":11,"rows_kept":55,"cut":false,"hidden":false,"merged":[[39,2,39,5],[30,2,30,6],[0,1,0,12],[6,3,6,4],[7,3,7,4],[5,3,5,4],[12,4,12,6],[12,7,12,9],[32,2,32,9]]}
[null,"These spreadsheets include significant amounts of material copied from other WRI and WBCSD calculation tools. \n Intellectual property rights of the WRI and WBCSD calculation tools belong to WRI and WBCSD, unless stated otherwise."]
[null,null,"Optional - Indirect Emissions"]
[null,null,"Electricity and/or steam imports"]
[]
[null,"EXPLANATION OF CELL COLOUR SCHEME"]
[null,null,null,"User entry: Source description"]
[null,null,null,"User entry: Fuel use / emission factor values"]
[null,null,null,"Auto calculated value:"]
[]
[]
[null,null,"Indirect Emissions from electricity and steam imports"]
[]
[null,null,null,"Step 1","Step 2",null,null,"Step 3",null,null,"Step 4"]
[null,null,null,"A","B","C","D","E","F","G","H"]
[null,null,null,"Electricity and/or steam Import","CO2 emission factor for imported electricity or steam*","CH4 emission factor for imported electricity or steam*","N2O emission factor for imported electricity or steam*","Indirect CO2 emissions in metric tonnes","Indirect CH4 emissions in metric tonnes","Indirect N2O emissions in metric tonnes","Explain source or basis of emission factors for estimating emissions from imported electricity or steam"]
[null,null,null,null,"Suggested emission factors from Environment Canada for purchased electricity are shown below.\nNote that EC factors are in terms of CO2 equivalents!","Environment Canada factors shown below (in CO2 equiv) include consideration of CH4","Environment Canada factors shown below (in CO2 equiv) include consideration of N2O","E = A * B / 1000","F = A * C / 1000","G = A * D / 1000"]
[null,null,null,"MWh","kg CO2/MWh","kg CH4/MWh","kg N2O/MWh"," metric tonnes CO2"," metric tonnes CH4"," metric tonnes N2O","Text explanation"]
[]
[null,null,"Stream description","Electricty/steam Imports (MWh)","Em. factor (lb CO2/MWh)","Em. factor (lb CH4/MWh)","Em. factor (lb N2O/MWh)","Em. (tonne CO2)","Em. (tonne CH4)","Em. (tonne N2O)","em. factor source/basis"]
[null,null,null,null,null,null,null,{"$f":"IF(D20=\"\",\"\",D20*E20/1000)","v":""},{"$f":"IF(D20=\"\",\"\",D20*F20/1000)","v":""},{"$f":"IF(D20=\"\",\"\",D20*G20/1000)","v":""}]
[null,null,null,null,null,null,null,{"$f":"IF(D21=\"\",\"\",D21*E21/1000)","v":""},{"$f":"IF(D21=\"\",\"\",D21*F21/1000)","v":""},{"$f":"IF(D21=\"\",\"\",D21*G21/1000)","v":""}]
[null,null,null,null,null,null,null,"","",""]
[null,null,null,null,null,null,null,"","",""]
[null,null,null,null,null,null,null,"","",""]
[null,null,null,null,null,null,null,"","",""]
[null,null,null,null,null,null,null,"","",""]
[null,null,null,null,null,null,null,"","",""]
[null,null,null,null,null,null,null,"","",""]
[null,null,null,null,null,null,null,"","",""]
[null,null,null,null,null,null,null,"CO2","CH4","N2O"]
[null,null,"Step 4: Sum of indirect emissions from purchased electricity or steam (in metric tonnes):",null,null,null,null,{"$f":"SUM(H20:H29)","v":0},{"$f":"SUM(I20:I29)","v":0},{"$f":"SUM(J20:J29)","v":0}]
[]
[null,null,"* Emission factors for purchased electricity can normally be obtained from national authorities or from the supplier of the purchased electricity.  These tools provide, as suggested defaults, purchased electricity emission factors provided by NATIONAL INVENTORY REPORT, 1990-2005: GREENHOUSE GAS SOURCES AND SINKS IN CANADA, Tables A9-1 through A9-12, available at http://www.ec.gc.ca/pdb/ghg/inventory_report/2005_report/a9_eng.cfm#a9_4.  Note that these factors are in terms of CO2 equivalents, and include consideration of CO2, CH4, and N2O.\n  Emission factors for imported electricity or steam from CHP systems can be determined by the methods outlined in the \"CHP Allocation\" worksheet."]
[]
[]
[]
[]
[]
[null,null,"Suggested default emission factors for purchased electricity:"]
[null,null,"Indirect Emissions Resulting from Electric Energy Consumption (kg CO2 eq./MWh). Factors are for the year 2006 (the most current values available), reproduced from NATIONAL INVENTORY REPORT, 1990-2006: GREENHOUSE GAS SOURCES AND SINKS IN CANADA, Tables A9-1 through A9-12, available at http://www.ec.gc.ca/pdb/ghg/inventory_report/2006_report/a9_eng.cfm).  Note that these factors are in terms of CO2 equivalents, and include consideration of CO2, CH4, and N2O."]
[]
[]
[null,null,null,"Carbon Dioxide Equivalents"]
[null,null,"Province","kg CO2 eq./MWh"]
[null,null,"Alberta",930]
[null,null,"British Columbia",20]
[null,null,"Manitoba",10]
[null,null,"New Brunswick",366]
[null,null,"Newfoundland and Labrador",15]
[null,null,"Yukon/Northwest Territories/Nunavut",80]
[null,null,"Nova Scotia",549]
[null,null,"Ontario",180]
[null,null,"Prince Edward Island",192]
[null,null,"Quebec",6]
[null,null,"Saskatchewan",810]

{"sheet":"Indirect - Energy Exports","index":8,"n_rows":35,"n_cols":14,"rows_kept":35,"cut":false,"hidden":false,"merged":[[34,3,34,7],[17,8,17,10],[0,1,0,12],[7,3,7,4],[8,3,8,4],[9,3,9,4],[17,4,17,6],[12,2,12,7]]}
[null,"These spreadsheets include significant amounts of material copied from other WRI and WBCSD calculation tools. \n Intellectual property rights of the WRI and WBCSD calculation tools belong to WRI and WBCSD, unless stated otherwise."]
[null,null,"Optional - Emissions Associated with Exports of Electricity and Steam"]
[]
[null,null,"Note: The emissions related to electricity and steam exports "]
[null,null,"should be reported separately from indirect emissions from imported power or steam"]
[]
[null,"EXPLANATION OF CELL COLOUR SCHEME"]
[null,null,null,"User entry: Source description"]
[null,null,null,"User entry: Fuel use / emission factor values"]
[null,null,null,"Auto calculated value:"]
[]
[]
[null,null,"Direct emissions attributable to electricity and steam exports"]
[]
[]
[null,null,"The direct emissions impact is based on amount of emissions associated with producing the exported power or steam"]
[]
[null,null,null,"Step 1","Step 2",null,null,"Step 3","Step 4",null,null,"Step 5"]
[null,null,null,"A","B","C","D","E","F","G","H","I"]
[null,null,null,"Total electricity/steam production by generator","Total direct CO2 emissions from generating the total electricity/steam","Total direct CH4 emissions from generating the total electricity/steam","Total direct N2O emissions from generating the total electricity/steam","Electricity/steam exports from generator","Portion of direct CO2 emissions related to exported power/steam","Portion of direct CH4 emissions related to exported power/steam","Portion of direct N2O emissions related to exported power/steam","Carbon intensity of exported power or steam",null,"Carbon intensity of power on the grid into which the export occurred\n(applies to electricity only)"]
[null,null,null,null,null,null,null,null,"F = B * E / A","G = C * E / A","H = D * E / A","I=[F+(G*GWPCH4)+(H*GWPN2O)]/E"]
[null,null,null,"MWh","metric tonnes CO2","metric tonnes CH4","metric tonnes N2O","MWh","metric tonnes CO2","metric tonnes CH4","metric tonnes N2O","metric tonnes CO2 equiv. / MWh",null,"metric tons CO2 equiv / MWh"]
[]
[null,null,"Stream description","Total energy prod. (MWh)","Total emissions (tonne CO2)","Total emissions (tonne CH4)","Total emissions (tonne N2O)","Energy exports (MWh)","CO2 emissions (tonnes)","CH4 emissions (tonnes)","N2O emissions (tonnes)","Carbon intensity (tonnes CO2 eq/MWh)",null,"Carbon intensity on grid (tonne CO2 eq. / MWh)"]
[null,null,null,null,null,null,null,null,{"$f":"IF($D25=0,\"\",E25*$H25/$D25)","v":""},{"$f":"IF($D25=0,\"\",F25*$H25/$D25)","v":""},{"$f":"IF($D25=0,\"\",G25*$H25/$D25)","v":""},{"$f":"+IF(D25=0,\"\",(E25+(F25*GWPCH4)+(G25*GWPN2O))/D25)","v":""}]
[null,null,null,null,null,null,null,null,{"$f":"IF($D26=0,\"\",E26*$H26/$D26)","v":""},{"$f":"IF($D26=0,\"\",F26*$H26/$D26)","v":""},{"$f":"IF($D26=0,\"\",G26*$H26/$D26)","v":""},""]
[null,null,null,null,null,null,null,null,"","","",""]
[null,null,null,null,null,null,null,null,"","","",""]
[null,null,null,null,null,null,null,null,"","","",""]
[null,null,null,null,null,null,null,null,"","","",""]
[null,null,null,null,null,null,null,null,"","","",""]
[null,null,null,null,null,null,null,null,"","","",""]
[null,null,null,null,null,null,null,null,"","","",""]
[null,null,null,null,null,null,null,null,"CO2","CH4","N2O"]
[null,null,null,"Step 5: Sum of direct emissions attributable to exported power or steam (metric tonnes):",null,null,null,null,{"$f":"SUM(I25:I33)","v":0},{"$f":"SUM(J25:J33)","v":0},{"$f":"SUM(K25:K33)","v":0}]

{"sheet":"CHP Allocation","index":9,"n_rows":34,"n_cols":19,"rows_kept":34,"cut":false,"hidden":false,"merged":[[18,7,18,8],[1,1,1,14],[10,3,10,4],[11,3,11,4],[33,1,33,9],[20,10,20,11],[3,3,3,11],[9,3,9,4],[14,2,14,8],[16,5,16,13],[18,10,18,11]]}
[]
[null,"These spreadsheets include significant amounts of material copied from other WRI and WBCSD calculation tools. \n Intellectual property rights of the WRI and WBCSD calculation tools belong to WRI and WBCSD, unless stated otherwise."]
[]
[null,null,null,"Combined heat and power:  \nAllocating emissions based on the efficiency of heat and power production"]
[]
[null,null,null,"Note:  If a facility is using all of the energy outputs of a CHP system, there is no need to allocate the emissions."]
[]
[null,null,"EXPLANATION OF CELL COLOR SCHEME"]
[null,null,null,null,"User entry: Source / fuel description"]
[null,null,null,"User entry: Fuel use / emission factor values"]
[null,null,null,"User enrty: Physical units:"]
[null,null,null,"Auto calculated value:"]
[]
[]
[null,null,"Combined heat and power:  \nAllocating emissions based on the efficiency of heat and power production"]
[]
[null,null,null,null,null,"Simplified Efficiency Method: \nAllocation based on assumed efficiencies for both steam and power production and total CHP emissions"]
[]
[null,null,null,null,null,"Step 1","Step 2","Step 3",null,"Step 4","Step 5",null,"Step 6","Step 7","Step 8","Step 9","Step 10","Step 11","Step 12"]
[null,null,null,null,null,"A","B","C","D","E",null,null,"F","G","H","I","J","K","L"]
[null,null,null,null,null,"H  Heat output (district heat, process heat, other steam)","P  Power output","T Total Fuel input","Energy Unit used\nin A, B, and C","ET  Total direct emissions of a GHG from CHP facility","Allowed input values for ratio of heat production efficiency to power production efficiency, eh/ep",null,"Assigned ratio of efficiencies","ep  (efficiency of typical power production)","eh  (efficiency of typical heat production)","EH  Emissions share allocated to heat production","EP  Emissions share allocated to electricity production","Emission factor for heat production","Emission factor for electricity production"]
[null,null,null,null,null,null,null,null,null,"Use methods outlined in \"Direct - Fuel Combust.\"\n\nEach GHG must be allocated individually (e.g., use a separate row for CO2, CH4, and N2O)","Minimum ratio allowed by energy balance","Maximum ratio allowed by energy balance","Efficiency of heat production divided by efficiency of power production (recommended default ratio of 0.8/.35=2.29)","G = ( A + B * F ) / ( C * F )","H = G * F","I = E * ( A / ( A + B * F ) )","J = E - I","K = I * 1000 / A","L = J * 1000 / B"]
[null,null,null,"Description of Entry","GHG","(MMBtu or MWh)","(same unit as in column A)","(same unit as in column A)","(MMBtu or MWh)","metric tonnes GHG",null,null,"eh/ep",null,null,"metric tonnes GHG","metric tonnes GHG","kg GHG / energy unit in D","kg GHG / energy unit in D"]
[null,null,"Example>>","Cogen system 1","CO2",1000,500,2679,"MWh",587.4,{"$f":"IF(ISERROR(F24/(H24-G24)),\"\",F24/(H24-G24))","v":0.45892611289582375},{"$f":"IF(ISERROR((H24-F24)/G24),\"\",(H24-F24)/G24)","v":3.3580000000000001},2.2999999999999998,{"$f":"+IF(ISERROR((F24+M24*G24)/(H24*M24)),\"\",(F24+M24*G24)/(H24*M24))","v":0.3489296784978172},{"$f":"IF(ISERROR(M24*N24),\"\",M24*N24)","v":0.80253826054497945},{"$f":"+IF(ISERROR(J24*(F24/(F24+G24*M24))),\"\",J24*(F24/(F24+G24*M24)))","v":273.2093023255814},{"$f":"IF(ISERROR(J24-P24),\"\",J24-P24)","v":314.19069767441857},{"$f":"IF(ISERROR(P24*1000/F24),\"\",P24*1000/F24)","v":273.20930232558146},{"$f":"IF(ISERROR(Q24*1000/G24),\"\",Q24*1000/G24)","v":628.38139534883715}]
[null,null,null,null,null,null,null,null,null,null,{"$f":"IF(ISERROR(F25/(H25-G25)),\"\",F25/(H25-G25))","v":""},{"$f":"IF(ISERROR((H25-F25)/G25),\"\",(H25-F25)/G25)","v":""}]
[null,null,null,null,null,null,null,null,null,null,{"$f":"IF(ISERROR(F26/(H26-G26)),\"\",F26/(H26-G26))","v":""},{"$f":"IF(ISERROR((H26-F26)/G26),\"\",(H26-F26)/G26)","v":""},null,{"$f":"+IF(ISERROR((F26+M26*G26)/(H26*M26)),\"\",(F26+M26*G26)/(H26*M26))","v":""},{"$f":"IF(ISERROR(M26*N26),\"\",M26*N26)","v":""},{"$f":"+IF(ISERROR(J26*(F26/(F26+G26*M26))),\"\",J26*(F26/(F26+G26*M26)))","v":""},{"$f":"IF(ISERROR(J26-P26),\"\",J26-P26)","v":""},{"$f":"IF(ISERROR(P26*1000/F26),\"\",P26*1000/F26)","v":""},""]
[null,null,null,null,null,null,null,null,null,null,{"$f":"IF(ISERROR(F27/(H27-G27)),\"\",F27/(H27-G27))","v":""},{"$f":"IF(ISERROR((H27-F27)/G27),\"\",(H27-F27)/G27)","v":""},null,{"$f":"+IF(ISERROR((F27+M27*G27)/(H27*M27)),\"\",(F27+M27*G27)/(H27*M27))","v":""},{"$f":"IF(ISERROR(M27*N27),\"\",M27*N27)","v":""},{"$f":"+IF(ISERROR(J27*(F27/(F27+G27*M27))),\"\",J27*(F27/(F27+G27*M27)))","v":""},{"$f":"IF(ISERROR(J27-P27),\"\",J27-P27)","v":""},"",""]
[null,null,null,null,null,null,null,null,null,null,{"$f":"IF(ISERROR(F28/(H28-G28)),\"\",F28/(H28-G28))","v":""},{"$f":"IF(ISERROR((H28-F28)/G28),\"\",(H28-F28)/G28)","v":""},null,{"$f":"+IF(ISERROR((F28+M28*G28)/(H28*M28)),\"\",(F28+M28*G28)/(H28*M28))","v":""},{"$f":"IF(ISERROR(M28*N28),\"\",M28*N28)","v":""},{"$f":"+IF(ISERROR(J28*(F28/(F28+G28*M28))),\"\",J28*(F28/(F28+G28*M28)))","v":""},{"$f":"IF(ISERROR(J28-P28),\"\",J28-P28)","v":""},"",""]
[]
[]
[]
[]
[]
[null,"The equations used to calculate emission allocations in the table above are mathematically identical to those in the current WRI default efficiency method.  However, they have been rearranged to allow the user to select a value for the parameter that controls the allocation (the ratio of efficiencies) in a way that is consistent with the energy balance for the CHP system.  The rearrangements have been made so that the assumptions inherent to the efficiency method, and their implications, are more clear.  The equations make it clear that (a) the parameter that controls the allocation is the ratio of the efficiencies for heat and power generation, and (b) this ratio and the individual efficiencies are constrained by the energy balance."]

{"sheet":"Summary Table","index":10,"n_rows":29,"n_cols":9,"rows_kept":29,"cut":false,"hidden":false,"merged":[[0,2,0,14],[4,2,4,3],[6,2,6,3],[9,2,9,3],[4,5,4,8],[6,5,6,8],[17,2,17,3],[3,3,3,7],[15,2,15,3],[23,2,23,3],[28,2,28,3],[19,2,19,3],[13,2,13,3],[27,2,27,3]]}
[null,null,"These spreadsheets include significant amounts of material copied from other WRI and WBCSD calculation tools. \n Intellectual property rights of the WRI and WBCSD calculation tools belong to WRI and WBCSD, unless stated otherwise."]
[null,null,"Summary of Inventory Results"]
[]
[null,null,null,{"$f":"IF(I20<10000,\"Did Not Exceed Threshold - Not Required To Report\",\"Threshold Exceeded - Required To Report\")","v":"Did Not Exceed Threshold - Not Required To Report"}]
[null,null,"Name of Inventory",null,null,{"$f":"IF('Operations in Inventory'!F8=\"\",\"\",'Operations in Inventory'!F8)","v":""}]
[]
[null,null,"General description of inventory boundaries",null,null,{"$f":"IF('Operations in Inventory'!F10=\"\",\"\",'Operations in Inventory'!F10)","v":""}]
[]
[null,null,"Required Information: Direct Emissions",null,null,"CO2\n(metric tonnes)","CH4\n(metric tonnes)","N2O\n(metric tonnes)","CO2-equiv\n(metric tonnes)"]
[null,null,"Stationary Fuel Combustion Emissions ",null,null,{"$f":"'Direct - Fuel Combust.'!J48","v":0},{"$f":"'Direct - Fuel Combust.'!K48","v":0},{"$f":"'Direct - Fuel Combust.'!L48","v":0},{"$f":"'Direct - Fuel Combust.'!M48","v":0}]
[]
[null,null,null,"GHGs associated with the sale or export of electricity, steam, or hot water (this is a subset of stationary fuel combustion emissions)",null,{"$f":"'Indirect - Energy Exports'!I35","v":0},{"$f":"'Indirect - Energy Exports'!J35","v":0},{"$f":"'Indirect - Energy Exports'!K35","v":0},{"$f":"F12+G12*GWPCH4+H12*GWPN2O","v":0}]
[]
[null,null,"Other - Mobile & Transportation Emissions",null,null,{"$f":"'Mobile & Transportation'!K46","v":0},{"$f":"'Mobile & Transportation'!L46","v":0},{"$f":"'Mobile & Transportation'!M46","v":0},{"$f":"F14+G14*GWPCH4+H14*GWPN2O","v":0}]
[]
[null,null,"Other – Landfill methane emissions",null,null,"N/A",{"$f":"'Waste Management'!O47","v":0},"N/A",{"$f":"G16*GWPCH4","v":0}]
[]
[null,null,"Other – Waste Water treatment emissions",null,null,"N/A",{"$f":"'Waste Management'!I159","v":0},"N/A",{"$f":"G18*GWPCH4","v":0}]
[]
[null,null,"Grand total of Direct Emissions in terms of CO2 Equivalents",null,null,"N/A","N/A","N/A",{"$f":"I16+I10+I14+I18","v":0}]
[]
[]
[null,null,"Optional Information: Indirect Emissions",null,null,"CO2\n(metric tonnes)","CH4\n(metric tonnes)","N2O\n(metric tonnes)","CO2-equiv\n(metric tonnes)"]
[null,null,"Indirect emissions from purchased power/steam/hot water",null,null,{"$f":"'Indirect - Energy Imports'!H31","v":0},{"$f":"'Indirect - Energy Imports'!I31","v":0},{"$f":"'Indirect - Energy Imports'!J31","v":0},{"$f":"F24+G24*GWPCH4+H24*GWPN2O","v":0}]
[]
[]
[]
[null,null,"Combustion-Related Releases of Biomass-Derived CO2",null,null,"CO2\n(metric tonnes)",null,null,"CO2-equiv\n(metric tonnes)"]
[null,null,"Combustion-Related Releases of Biomass-Derived CO2\n[ metric tons CO2  / year ]",null,null,{"$f":"'Biomass Combustion CO2'!I42","v":0},"N/A","N/A","N/A"]

{"sheet":"Custom Emission Factors","index":11,"n_rows":25,"n_cols":6,"rows_kept":25,"cut":false,"hidden":false,"merged":[[9,3,9,4],[7,3,7,4],[8,3,8,4]]}
["The intellectual property rights of this calculation tool belong to WRI and WBCSD, unless stated otherwise in any of the tools."]
["Please cite the orginial reference when using this tool."]
[]
[null,null,"Custom Emission Factors"]
[null,null,"Calculating custom emission factors"]
[]
[null,"EXPLANATION OF CELL COLOUR SCHEME"]
[null,null,null,"User entry: Source description"]
[null,null,null,"User entry: Fuel use / emission factor values"]
[null,null,null,"Auto calculated value:"]
[]
[]
[]
[null,null,null,"A","B","C"]
[null,null,null,"Higher Heating Value\n(HHV)","Carbon Content","Emission Factor"]
[null,null,null,null,null,"C = 1000 * B * 3.664 / A"]
[null,null,null,"GJ HHV / metric tonne","(% w/w)","kg CO2 / GJ HHV"]
[null,null,null,null,"This should be entered as a fraction, i.e. 0 > x > 1 "]
[]
[null,null,"Fuel Type"]
[null,null,null,null,null,{"$f":"IF(D21=0,0,3.664*1000*E21/D21)","v":0}]
[null,null,null,null,null,{"$f":"IF(D22=0,0,3.664*1000*E22/D22)","v":0}]
[null,null,null,null,null,{"$f":"IF(D23=0,0,3.664*1000*E23/D23)","v":0}]
[null,null,null,null,null,{"$f":"IF(D24=0,0,3.664*1000*E24/D24)","v":0}]
[null,null,null,null,null,{"$f":"IF(D25=0,0,3.664*1000*E25/D25)","v":0}]

{"sheet":"Energy content","index":12,"n_rows":29,"n_cols":4,"rows_kept":29,"cut":false,"hidden":false,"merged":[[3,0,3,6],[28,1,28,3]]}
[]
["Energy content (HHV)"]
["Default factors for fuel specific higher heating values"]
["Copied from VCR (Canadian GHG Challenge Registry Guide to Entity & Facility-Based Reporting, Version 4.0, February 2005, Table 16, p. 34, unless specifically noted otherwise for specific entries)"]
[]
[]
[]
[null,"Fuel type","Higher heating value‡","Heating Value Units"]
[null,null,"(HHV)"]
[]
[null,"Natural gas",3.8089999999999999E-2,"GJ/m3"]
[null,"Motor gasoline",34.659999999999997,"GJ/m3"]
[null,"Aviation Gasoline",33.619999999999997,"GJ/m3"]
[null,"Diesel",38.68,"GJ/m3"]
[null,"Light Fuel Oil",38.68,"GJ/m3"]
[null,"Heavy Fuel Oil",41.73,"GJ/m3"]
[null,"Light Crude Oil",38.51,"GJ/m3"]
[null,"Heavy Crude Oil",40.9,"GJ/m3"]
[null,"Propane",25.49,"GJ/m3"]
[null,"Butane (liquid)*",27.1,"GJ/m3"]
[null,"Ethane (liquid)*",18.5,"GJ/m3"]
[null,"Wood (not wood pellets)",18,"GJ/tonne (assumed dry)"]
[null,"Hardwood",30.6,"GJ/cord (air dry)"]
[null,"Softwood",18.7,"GJ/cord (air dry)"]
[null,"Mixed wood",25,"GJ/cord (air dry)"]
[null,"Wood pellets",19.8,"GJ/tonne (assumed dry)"]
[null,"Wood pellets",1.9800000000000002E-2,"GJ/kg (assumed dry)"]
[]
[null,"*Energy content for this fuel is from American Petroleum Institute (API), Compendium of Greenhouse Gas Emissions Estimation Methodologies for the Oil & Gas Industry, 2004."]

{"sheet":"Conversion Factors","index":13,"n_rows":81,"n_cols":6,"rows_kept":81,"cut":false,"hidden":false,"merged":[[18,2,22,2],[27,2,31,2],[36,2,37,2],[38,2,39,2]]}
["The intellectual property rights of this calculation tool belong to WRI and WBCSD, unless stated otherwise in any of the tools."]
["Please cite the orginial reference when using this tool."]
[]
[]
["Unit Conversion Tables - copied from VCR ( Canadian GHG Challenge Registry Guide to Entity & Facility-Based Reporting, Version 4.0, February 2005, Table 13, 14, 15, and entries from Table 16, pp. 34-5)"]
[]
[]
[null,"Metric Prefixes"]
[null,null,"Abbreviation","Prefix","Multiple"]
[null,null,"k","kilo-","103"]
[null,null,"M","mega-","106"]
[null,null,"G","giga-","109"]
[null,null,"T","tera-","1012"]
[null,null,"P","peta-","1015"]
[]
[]
[]
[null,"Mass"]
[null,null,"1 tonne","1,000 kg"]
[null,null,null,"10-3 kt (kilotonnes)"]
[null,null,null,"10-6 Mt (megatonnes)"]
[null,null,null,"1.1023 tons"]
[null,null,null,"2,204.6 lbs. (pounds)"]
[]
[]
[]
[null,"Volume"]
[null,null,"1 m3 (cubic metre)","1,000 liters"]
[null,null,null,"264.2 US gallons"]
[null,null,null,"6.29 barrels"]
[null,null,null,"35.315 ft3 (cubic feet)"]
[null,null,null,"1.308 yd3 (cubic yards)"]
[]
[]
[]
[null,"Energy"]
[null,null,"1 GJ (gigajoule)","947,817 Btu"]
[null,null,null,"277.8 kWh (kilowatt hour)"]
[null,null,"1 kWh electricity","3.6 MJ (megajoule)"]
[null,null,null,"0.0036 GJ (gigajoule)"]
[]
[]
[]
[]
[]
["Conversion Factors copied from WRI/WBCSD GHG Protocol"]
[]
[]
[]
[null,null,"Mass"]
[null,null,"1 pound (lb)","453.6 grams (g)","0.4536 kilograms (kg)","0.0004536 metric tons (tonne)"]
[null,null,"1 kilogram (kg)","2.205 pounds (lb)"]
[null,null,"1 short ton (ton)","2,000 pounds (lb)","907.2 kilograms (kg)"]
[null,null,"1 metric ton","2,205 pounds (lb)","1,000 kilograms (kg)","1.1023 short tons (tons)"]
[]
[null,null,"Volume"]
[null,null,"1 cubic foot (ft 3)","7.4805 gallons (gal)","0.1781 barrel (bbl)"]
[null,null,"1 cubic foot (ft 3)","28.32 liters (L)","0.02832 cubic meters (m 3)"]
[null,null,"1 gallon (gal)","0.0238 barrel (bbl)","3.785 liters (L)","0.003785 cubic meters (m 3)"]
[null,null,"1 barrel (bbl)","42 gallons (gal)","158.99 liters (L)","0.1589 cubic meters (m 3)"]
[null,null,"1 litre (L)","0.001 cubic meters (m 3)","0.2642 gallons (gal)"]
[null,null,"1 cubic meter (m 3)","6.2897 barrels (bbl)","264.2 gallons (gal)","1,000 liters (L)"]
[]
[null,null,"Energy"]
[null,null,"1 kilowatt hour (kWh)","3412 Btu (btu)","3,600 kilojoules (KJ)"]
[null,null,"1 megajoule (MJ)","0.001 gigajoules (GJ)"]
[null,null,"1 gigajoule (GJ)","0.9478 million Btu (million btu)","277.8 kilowatt hours (kWh)"]
[null,null,"1 Btu (btu)","1,055 joules (J)"]
[null,null,"1 million Btu (million btu)","1.055 gigajoules (GJ)","293 kilowatt hours (kWh)"]
[null,null,"1 therm (therm)","100,000 btu ","0.1055 gigajoules (GJ)","29.3 kilowatt hours (kWh)"]
[]
[null,null,"Other"]
[null,null,"kilo","1,000"]
[null,null,"mega","1,000,000"]
[null,null,"giga","1,000,000,000"]
[null,null,"tera","1,000,000,000,000"]
[null,null,"1 psi","0.06895 bar"]
[null,null,"1 kgf / cm 3 (tech atm)","0.9807 bar"]
[null,null,"1 atmosphere (atm)","1.01325 bar","101.325 kilo pascals","14.696 pounds per square inch (psia)"]
[null,null,"1 mile (statue)","1.609 kilometers"]
[null,null,"1 metric ton carbon","3.664 metric tons CO2"]

{"sheet":"Raw Data Log","index":14,"n_rows":158,"n_cols":13,"rows_kept":158,"cut":false,"hidden":false,"merged":[]}
["Stationary Sources",null,null,null,"CO2",null,"CH4",null,"N20"]
["Source Description","Fuel Type","Quantity Burned","Units","Emission Factor","Units","Emission Factor","Units","Emission Factor","Units"]
[]
[]
[]
[]
[]
[]
[]
[]
[]
[]
[]
[]
[]
[]
[]
[]
[]
[]
[]
[]
[]
[]
[]
[]
[]
["Other - Mobile & Transportation Sources",null,null,null,"CO2",null,"CH4",null,"N20"]
["Source Description","Fuel Type","Quantity Burned","Units","Emission Factor","Units","Emission Factor","Units","Emission Factor","Units"]
[]
[]
[]
[]
[]
[]
[]
[]
[]
[]
[]
[]
[]
[]
[]
[]
[]
[]
[]
[]
[]
[]
[]
[]
[]
[]
[]
[]
[]
[]
[]
[]
[]
[]
[]
[]
[]
[]
[]
[]
[null,null,null,null,null,null,null,null,null,null,null,"Fraction of landfill gas that is collected","Fraction of landfill gas that is burned"]
[]
[]
[]
[]
[]
[]
[]
[]
[]
[]
[]
[]
[]
[]
[]
[]
[]
[]
[]
[]
[]
[]
[]
[]
[]
[]
[]
[]
[]
[]
[]
[]
[]
[]
[]
[]
[]
[]
[]
[]
[]
[]
[]
[]
[]
[]
[]
[]
[]
["Anaerobic Wastewater Treatment Method 1"]
["System Description","Waste Type","Quantity of Gas Collected","Units","Efficiency of gas collection system","Fraction of Gas Burned","Methane content of gas"]
[]
[]
[]
[]
[]
["Anaerobic Wastewater Treatment Method 2"]
["System Description","Waste Type","Amount of Organic Matter sent to plant per year","units","Methane Emission factor","Amount of methane captured and burned","units"]
[]
[]
[]
[]
[]
["Energy Imports"]
["Source Description","Quantity Imported","Units","CO2 Emission Factor","Emission Factor Units","CH4 Emission Factor","Emission Factor Units","N2O Emission Factor","Emission Factor Units"]
[]
[]
[]
[]
[]
[]
[]
[]
[]
[]
["Energy Exports"]
["Source Description","Total Generated","Units","CO2 Emissions","Emission Units","CH4 Emissions","Emission Units","N2O Emissions","Emission Units","Quantity Exported","Units","Grid Intensity"]
[]
[]
[]
[]
[]
[]
[]
[]
[]
["Biomass - Wood Fuel"]
["Source Description","Quantity Burned","units","Emission Factor","units","Amount of climate neutral biomass derived CO2 that is exported","units"]

{"sheet":"Energy Factors","index":15,"n_rows":143,"n_cols":256,"rows_kept":143,"cut":false,"hidden":false,"merged":[[39,17,52,17]]}
["This table presents a matrix of factors for converting fuel consumption input data into units of GJ HHV",null,null,null,null,null,null,null,null,null,null,null,null,null,null,null,null,null,null,null,null,null,null,null,null,null,null,null,null,null,null,null,null,null,null,null,null,null,null,null,null,null,null,null,null,null,null,null,null,null,null,null,null,null,null,null,null,null,null,null,null,null,null,null,null,null,null,null,null,null,null,null,null,null,null,null,null,null,null,null,null,null,null,null,null,null,null,null,null,null,null,null,null,null,null,null,null,null,null,null,null,null,null,null,null,null,null,null,null,null,null,null,null,null,null,null,null,null,null,null,null,null,null,null,null,null,null,null,null,null,null,null,null,null,null,null,null,null,null,null,null,null,null,null,null,null,null,null,null,null,null,null,null,null,null,null,null,null,null,null,null,null,null,null,null,null,null,null,null,null,null,null,null,null,null,null,null,null,null,null,null,null,null,null,null,null,null,null,null,null,null,null,null,null,null,null,null,null,null,null,null,null,null,null,null,null,null,null,null,null,null,null,null,null,null,null,null,null,null,null,null,null,null,null,null,null,null,null,null,null,null,null,null,null,null,null,null,null,null,null,null,null,null,null,null,null,null,null,null,null,null,null,null,null,null,"Disable Error Notification Save Box"]
["(Fuel consumption data in units listed can be converted to units of GJ HHV by multiplying by the factor)",null,null,null,null,null,null,null,null,null,null,null,null,null,null,null,null,null,null,null,null,null,null,null,null,null,null,null,null,null,null,null,null,null,null,null,null,null,null,null,null,null,null,null,null,null,null,null,null,null,null,null,null,null,null,null,null,null,null,null,null,null,null,null,null,null,null,null,null,null,null,null,null,null,null,null,null,null,null,null,null,null,null,null,null,null,null,null,null,null,null,null,null,null,null,null,null,null,null,null,null,null,null,null,null,null,null,null,null,null,null,null,null,null,null,null,null,null,null,null,null,null,null,null,null,null,null,null,null,null,null,null,null,null,null,null,null,null,null,null,null,null,null,null,null,null,null,null,null,null,null,null,null,null,null,null,null,null,null,null,null,null,null,null,null,null,null,null,null,null,null,null,null,null,null,null,null,null,null,null,null,null,null,null,null,null,null,null,null,null,null,null,null,null,null,null,null,null,null,null,null,null,null,null,null,null,null,null,null,null,null,null,null,null,null,null,null,null,null,null,null,null,null,null,null,null,null,null,null,null,null,null,null,null,null,null,null,null,null,null,null,null,null,null,null,null,null,null,null,null,null,null,null,null,1]
[]
["Consumption Input Units (right)","Btu (HHV)","Btu (LHV)","Million Btu (HHV)","Million Btu (LHV)","GJ (HHV)","US gallon","Litre","bbl","std ft3","std m3","lb","US ton","kg","Metric Tonne","GJ (LHV)","MWh"]
["Fuel type (below)"]
["Car (Gasoline)",1.0550559865459259E-6,1.1109739538328601E-6,1.0550559865459261,1.11097395383286,1,0.13118849356548068,3.4659999999999996E-2,5.5099167297501888,0.98145264052102499,34.659999999999997,"N/A","N/A","N/A","N/A",1.0527348633755249,3.6]
["Light truck (Gasoline)",1.0550559865459259E-6,1.1109739538328601E-6,1.0550559865459261,1.11097395383286,1,0.13118849356548068,3.4659999999999996E-2,5.5099167297501888,0.98145264052102499,34.659999999999997,"N/A","N/A","N/A","N/A",1.0527348633755249,3.6]
["Heavy Duty Vehicle (Gasoline)",1.0550559865459259E-6,1.1109739538328601E-6,1.0550559865459261,1.11097395383286,1,0.13118849356548068,3.4659999999999996E-2,5.5099167297501888,0.98145264052102499,34.659999999999997,"N/A","N/A","N/A","N/A",1.0527348633755249,3.6]
["Motorcycle (Gasoline)",1.0550559865459259E-6,1.1109739538328601E-6,1.0550559865459261,1.11097395383286,1,0.13118849356548068,3.4659999999999996E-2,5.5099167297501888,0.98145264052102499,34.659999999999997,"N/A","N/A","N/A","N/A",1.0527348633755249,3.6]
["Off-Road Vehicles (Gasoline)",1.0550559865459259E-6,1.1109739538328601E-6,1.0550559865459261,1.11097395383286,1,0.13118849356548068,3.4659999999999996E-2,5.5099167297501888,0.98145264052102499,34.659999999999997,"N/A","N/A","N/A","N/A",1.0527348633755249,3.6]
["Boats (Gasoline)",1.0550559865459259E-6,1.1109739538328601E-6,1.0550559865459261,1.11097395383286,1,0.14243255818370001,3.7630794764517833E-2,5.9821674437154009,1.065575386224489,37.63079476451783,"N/A","N/A","N/A","N/A",1.0527348633755249,3.6]
["Kerosene",1.0550559865459259E-6,1.1109739538328601E-6,1.0550559865459261,1.11097395383286,1,0.14243255818370001,3.7630794764517833E-2,5.9821674437154009,1.065575386224489,37.63079476451783,"N/A","N/A","N/A","N/A",1.0527348633755249,3.6]
["Jet Aircraft (Aviation Turbo Fuel)",1.0550559865459259E-6,1.1109739538328601E-6,1.0550559865459261,1.11097395383286,1,"N/A","N/A","N/A","N/A","N/A","N/A","N/A","N/A","N/A",1.0527348633755249,3.6]
["Conventional Aircraft (Aviation Gasoline)",1.0550559865459259E-6,1.1109739538328601E-6,1.0550559865459261,1.11097395383286,1,0.12725208175624528,3.3619999999999997E-2,5.3445874337623014,0.95200339798952283,33.619999999999997,"N/A","N/A","N/A","N/A",1.0527348633755249,3.6,"Fuel type","kg CO2/l","kg CH4/l","kg N2O/l"]
["Light ('Distillate') Oil (Oil #2), stationary sources",1.0550559865459259E-6,1.1109739538328601E-6,1.0550559865459261,1.11097395383286,1,0.14640423921271764,3.8679999999999999E-2,6.1489780469341406,1.095285289537024,38.68,"N/A","N/A","N/A","N/A",1.0527348633755249,3.6,"Car (Gasoline)",2.36,1.2E-4,2.5999999999999998E-4]
["Light ('Distillate') Oil (Oil #2), stationary sources except lime kilns and calciners",1.0550559865459259E-6,1.1109739538328601E-6,1.0550559865459261,1.11097395383286,1,0.14640423921271764,3.8679999999999999E-2,6.1489780469341406,1.095285289537024,38.68,"N/A","N/A","N/A","N/A",1.0527348633755249,3.6,"Car (E10 Ethanol blend gasoline)",2.1240000000000001,1.2E-4,2.5999999999999998E-4]
["Light ('Distillate') Oil (Oil #2) lime kilns",1.0550559865459259E-6,1.1109739538328601E-6,1.0550559865459261,1.11097395383286,1,0.14640423921271764,3.8679999999999999E-2,6.1489780469341406,1.095285289537024,38.68,"N/A","N/A","N/A","N/A",1.0527348633755249,3.6,"Car (Diesel)",2.73,5.0000000000000002E-5,2.0000000000000001E-4]
["Light ('Distillate') Oil (Oil #2) lime calciners",1.0550559865459259E-6,1.1109739538328601E-6,1.0550559865459261,1.11097395383286,1,0.14640423921271764,3.8679999999999999E-2,6.1489780469341406,1.095285289537024,38.68,"N/A","N/A","N/A","N/A",1.0527348633755249,3.6,"Light truck (Gasoline)",2.36,2.2000000000000001E-4,4.0999999999999999E-4]
["Car (Diesel)",1.0550559865459259E-6,1.1109739538328601E-6,1.0550559865459261,1.11097395383286,1,0.14640423921271764,3.8679999999999999E-2,6.1489780469341406,1.095285289537024,38.68,"N/A","N/A","N/A","N/A",1.0527348633755249,3.6,"Light Truck (E10 Ethanol blend gasoline)",2.1240000000000001,2.2000000000000001E-4,4.0999999999999999E-4]
["Light Truck (Diesel)",1.0550559865459259E-6,1.1109739538328601E-6,1.0550559865459261,1.11097395383286,1,0.14640423921271764,3.8679999999999999E-2,6.1489780469341406,1.095285289537024,38.68,"N/A","N/A","N/A","N/A",1.0527348633755249,3.6,"Light Truck (Diesel)",2.73,6.9999999999999994E-5,2.0000000000000001E-4]
["Heavy Duty Truck (Diesel)",1.0550559865459259E-6,1.1109739538328601E-6,1.0550559865459261,1.11097395383286,1,0.14640423921271764,3.8679999999999999E-2,6.1489780469341406,1.095285289537024,38.68,"N/A","N/A","N/A","N/A",1.0527348633755249,3.6,"Heavy Duty Vehicle (Gasoline)",2.36,1.7000000000000001E-4,1E-3]
["Ships (Diesel)",1.0550559865459259E-6,1.1109739538328601E-6,1.0550559865459261,1.11097395383286,1,0.14640423921271764,3.8679999999999999E-2,6.1489780469341406,1.095285289537024,38.68,"N/A","N/A","N/A","N/A",1.0527348633755249,3.6,"Heavy Duty (E10 Ethanol blend gasoline)",2.1240000000000001,1.7000000000000001E-4,1E-3]
["Diesel",1.0550559865459259E-6,1.1109739538328601E-6,1.0550559865459261,1.11097395383286,1,0.14640423921271764,3.8679999999999999E-2,6.1489780469341406,1.095285289537024,38.68,"N/A","N/A","N/A","N/A",1.0527348633755249,3.6,"Heavy Duty Truck (Diesel)",2.73,1.2E-4,8.0000000000000007E-5]
["Off-Road Vehicles (Diesel)",1.0550559865459259E-6,1.1109739538328601E-6,1.0550559865459261,1.11097395383286,1,0.14640423921271764,3.8679999999999999E-2,6.1489780469341406,1.095285289537024,38.68,"N/A","N/A","N/A","N/A",1.0527348633755249,3.6,"Motorcycle (Gasoline)",2.36,1.4E-3,4.6E-5]
["Railroad Locomotives (Diesel)",1.0550559865459259E-6,1.1109739538328601E-6,1.0550559865459261,1.11097395383286,1,0.14640423921271764,3.8679999999999999E-2,6.1489780469341406,1.095285289537024,38.68,"N/A","N/A","N/A","N/A",1.0527348633755249,3.6,"Motorcycle (E10 Ethanol blend gasoline)",2.1240000000000001,1.4E-3,4.6E-5]
["Ships (Light 'Distillate' Oil)",1.0550559865459259E-6,1.1109739538328601E-6,1.0550559865459261,1.11097395383286,1,0.14640423921271764,3.8679999999999999E-2,6.1489780469341406,1.095285289537024,38.68,"N/A","N/A","N/A","N/A",1.0527348633755249,3.6,"Propane Vehicles",1.5,5.1999999999999995E-4,2.8E-5]
["Heavy ('Residual') Oil (#6 Oil), stationary sources",1.0550559865459259E-6,1.1109739538328601E-6,1.0550559865459261,1.11097395383286,1,0.15794852384557154,4.1729999999999996E-2,6.6338380015140048,1.1816508565765256,41.73,"N/A","N/A","N/A","N/A",1.0527348633755249,3.6,"Natural Gas Vehicles",2.758,3.2099999999999997E-2,9.0000000000000006E-5,"kg/kg"]
["Heavy ('Residual') Oil (#6 Oil), stationary sources except lime kilns and calciners",1.0550559865459259E-6,1.1109739538328601E-6,1.0550559865459261,1.11097395383286,1,0.15794852384557154,4.1729999999999996E-2,6.6338380015140048,1.1816508565765256,41.73,"N/A","N/A","N/A","N/A",1.0527348633755249,3.6,"Off-Road Vehicles (Gasoline)",2.36,2.7000000000000001E-3,5.0000000000000002E-5]
["Heavy ('Residual') Oil (#6 Oil) lime kilns",1.0550559865459259E-6,1.1109739538328601E-6,1.0550559865459261,1.11097395383286,1,0.15794852384557154,4.1729999999999996E-2,6.6338380015140048,1.1816508565765256,41.73,"N/A","N/A","N/A","N/A",1.0527348633755249,3.6,"Off-Road (E10 Ethanol blend gasoline)",2.1240000000000001,2.7000000000000001E-3,5.0000000000000002E-5]
["Heavy ('Residual') Oil (#6 Oil) lime calciners",1.0550559865459259E-6,1.1109739538328601E-6,1.0550559865459261,1.11097395383286,1,0.15794852384557154,4.1729999999999996E-2,6.6338380015140048,1.1816508565765256,41.73,"N/A","N/A","N/A","N/A",1.0527348633755249,3.6,"Off-Road Vehicles (Diesel)",2.73,1.3999999999999999E-4,1.1000000000000001E-3]
["Ships (Heavy 'Residual' Oil)",1.0550559865459259E-6,1.1109739538328601E-6,1.0550559865459261,1.11097395383286,1,0.15794852384557154,4.1729999999999996E-2,6.6338380015140048,1.1816508565765256,41.73,"N/A","N/A","N/A","N/A",1.0527348633755249,3.6,"Railroad Locomotives (Diesel)",2.73,1.4999999999999999E-4,1.1000000000000001E-3]
["Propane",1.0550559865459259E-6,1.1109739538328601E-6,1.0550559865459261,1.11097395383286,1,9.6479939439818321E-2,2.5489999999999999E-2,4.0521574564723695,0.72178960781537593,25.49,"N/A","N/A","N/A","N/A",1.0527348633755249,3.6,"Boats (Gasoline)",2.36,1.2999999999999999E-3,6.0000000000000002E-5]
["Propane Vehicles",1.0550559865459259E-6,1.1109739538328601E-6,1.0550559865459261,1.11097395383286,1,9.6479939439818321E-2,2.5489999999999999E-2,4.0521574564723695,0.72178960781537593,25.49,"N/A","N/A","N/A","N/A",1.0527348633755249,3.6,"Ships (Diesel)",2.73,1.4999999999999999E-4,1E-3]
["Butane",1.0550559865459259E-6,1.1109739538328601E-6,1.0550559865459261,1.11097395383286,1,0.10257380772142317,2.7099999999999999E-2,4.3080999242997731,0.76737930058048998,27.1,"N/A","N/A","N/A","N/A",1.0527348633755249,3.6,"Ships (Light 'Distillate' Oil)",2.83,2.9999999999999997E-4,6.9999999999999994E-5]
["Ethane",1.0550559865459259E-6,1.1109739538328601E-6,1.0550559865459261,1.11097395383286,1,7.0022710068130212E-2,1.8499999999999999E-2,2.9409538228614691,0.52385671810845258,18.5,"N/A","N/A","N/A","N/A",1.0527348633755249,3.6,"Ships (Heavy 'Residual' Oil)",3.09,2.9999999999999997E-4,8.0000000000000007E-5]
["Car (E10 Ethanol blend gasoline)",1.0550559865459259E-6,1.1109739538328601E-6,1.0550559865459261,1.11097395383286,1,"N/A","N/A","N/A","N/A","N/A","N/A","N/A","N/A","N/A",1.0527348633755249,3.6,"Conventional Aircraft (Aviation Gasoline)",2.33,2.1900000000000001E-3,2.3000000000000001E-4]
["Light Truck (E10 Ethanol blend gasoline)",1.0550559865459259E-6,1.1109739538328601E-6,1.0550559865459261,1.11097395383286,1,"N/A","N/A","N/A","N/A","N/A","N/A","N/A","N/A","N/A",1.0527348633755249,3.6,"Jet Aircraft (Aviation Turbo Fuel)",2.5499999999999998,8.0000000000000007E-5,2.5000000000000001E-4]
["Heavy Duty (E10 Ethanol blend gasoline)",1.0550559865459259E-6,1.1109739538328601E-6,1.0550559865459261,1.11097395383286,1,"N/A","N/A","N/A","N/A","N/A","N/A","N/A","N/A","N/A",1.0527348633755249,3.6]
["Motorcycle (E10 Ethanol blend gasoline)",1.0550559865459259E-6,1.1109739538328601E-6,1.0550559865459261,1.11097395383286,1,"N/A","N/A","N/A","N/A","N/A","N/A","N/A","N/A","N/A",1.0527348633755249,3.6]
["Off-Road (E10 Ethanol blend gasoline)",1.0550559865459259E-6,1.1109739538328601E-6,1.0550559865459261,1.11097395383286,1,"N/A","N/A","N/A","N/A","N/A","N/A","N/A","N/A","N/A",1.0527348633755249,3.6,"All coal input data must be entered in mass units because VCR doesn't provide any data from which to convert to energy units.  Therefore, the conversion factors for solid fossil fuels are to convert input units at heading into units of metric tonnes (i.e., the visual basic will write solid fossil fuel quantities in metric tonnes)."]
["Natural Gas, stationary sources (m3)",1.0550559865459259E-6,1.1721672010525238E-6,1.0550559865459261,1.1721672010525239,1,"N/A",3.8090000000000003E-5,"N/A",1.0785785077162679E-3,3.8089999999999999E-2,"N/A","N/A","N/A","N/A",1.11097395383286,3.6]
["Natural Gas, stationary sources except lime kilns and calciners (m3)",1.0550559865459259E-6,1.1721672010525238E-6,1.0550559865459261,1.1721672010525239,1,"N/A",1.0000380900000001,"N/A",1.0785785077162679E-3,3.8089999999999999E-2,"N/A","N/A","N/A","N/A",1.11097395383286,3.6]
["Natural Gas, lime kilns (m3)",1.0550559865459259E-6,1.1721672010525238E-6,1.0550559865459261,1.1721672010525239,1,"N/A",2.0000380899999999,"N/A",1.0785785077162679E-3,3.8089999999999999E-2,"N/A","N/A","N/A","N/A",1.11097395383286,3.6]
["Natural Gas, lime calciners (m3)",1.0550559865459259E-6,1.1721672010525238E-6,1.0550559865459261,1.1721672010525239,1,"N/A",3.0000380899999999,"N/A",1.0785785077162679E-3,3.8089999999999999E-2,"N/A","N/A","N/A","N/A",1.11097395383286,3.6]
["Still Gas",1.0550559865459259E-6,1.1721672010525238E-6,1.0550559865459261,1.1721672010525239,1,"N/A",3.8089999999999996E-5,"N/A",1.0785785077162679E-3,3.8089999999999999E-2,"N/A","N/A","N/A","N/A",1.11097395383286,3.6]
["Natural Gas Vehicles",1.0550559865459259E-6,1.1721672010525238E-6,1.0550559865459261,1.1721672010525239,1,"N/A",3.8089999999999996E-5,"N/A",1.0785785077162679E-3,3.8089999999999999E-2,"N/A","N/A","N/A","N/A",1.11097395383286,3.6]
["Newfoundland - Canadian Bituminous","N/A","N/A","N/A","N/A","N/A","N/A","N/A","N/A","N/A","N/A",4.5360000000000002E-4,0.90720000000000001,1E-3,1,"N/A","N/A"]
["Newfoundland - Antracite","N/A","N/A","N/A","N/A","N/A","N/A","N/A","N/A","N/A","N/A",4.5360000000000002E-4,0.90720000000000001,1E-3,1,"N/A","N/A"]
["Labrador - Canadian Bituminous","N/A","N/A","N/A","N/A","N/A","N/A","N/A","N/A","N/A","N/A",4.5360000000000002E-4,0.90720000000000001,1E-3,1,"N/A","N/A"]
["Labrador - Antracite","N/A","N/A","N/A","N/A","N/A","N/A","N/A","N/A","N/A","N/A",4.5360000000000002E-4,0.90720000000000001,1E-3,1,"N/A","N/A"]
["Nova Scotia - Canadian Bituminous","N/A","N/A","N/A","N/A","N/A","N/A","N/A","N/A","N/A","N/A",4.5360000000000002E-4,0.90720000000000001,1E-3,1,"N/A","N/A"]
["Nova Scotia - U.S. Bituminous","N/A","N/A","N/A","N/A","N/A","N/A","N/A","N/A","N/A","N/A",4.5360000000000002E-4,0.90720000000000001,1E-3,1,"N/A","N/A"]
["Nova Scotia - Sub-Bituminous","N/A","N/A","N/A","N/A","N/A","N/A","N/A","N/A","N/A","N/A",4.5360000000000002E-4,0.90720000000000001,1E-3,1,"N/A","N/A"]
["New Brunswick - Canadian Bituminous","N/A","N/A","N/A","N/A","N/A","N/A","N/A","N/A","N/A","N/A",4.5360000000000002E-4,0.90720000000000001,1E-3,1,"N/A","N/A"]
["New Brunswick - U.S. Bituminous","N/A","N/A","N/A","N/A","N/A","N/A","N/A","N/A","N/A","N/A",4.5360000000000002E-4,0.90720000000000001,1E-3,1,"N/A","N/A"]
["Quebec - Canadian Bituminous","N/A","N/A","N/A","N/A","N/A","N/A","N/A","N/A","N/A","N/A",4.5360000000000002E-4,0.90720000000000001,1E-3,1,"N/A","N/A"]
["Quebec - U.S. Bituminous","N/A","N/A","N/A","N/A","N/A","N/A","N/A","N/A","N/A","N/A",4.5360000000000002E-4,0.90720000000000001,1E-3,1,"N/A","N/A"]
["Quebec - Anthracite","N/A","N/A","N/A","N/A","N/A","N/A","N/A","N/A","N/A","N/A",4.5360000000000002E-4,0.90720000000000001,1E-3,1,"N/A","N/A"]
["Ontario - Canadian Bituminous","N/A","N/A","N/A","N/A","N/A","N/A","N/A","N/A","N/A","N/A",4.5360000000000002E-4,0.90720000000000001,1E-3,1,"N/A","N/A"]
["Ontario - U.S. Bituminous","N/A","N/A","N/A","N/A","N/A","N/A","N/A","N/A","N/A","N/A",4.5360000000000002E-4,0.90720000000000001,1E-3,1,"N/A","N/A"]
["Ontario - Sub-bituminous","N/A","N/A","N/A","N/A","N/A","N/A","N/A","N/A","N/A","N/A",4.5360000000000002E-4,0.90720000000000001,1E-3,1,"N/A","N/A"]
["Ontario - Lignite","N/A","N/A","N/A","N/A","N/A","N/A","N/A","N/A","N/A","N/A",4.5360000000000002E-4,0.90720000000000001,1E-3,1,"N/A","N/A"]
["Ontario - Anthracite","N/A","N/A","N/A","N/A","N/A","N/A","N/A","N/A","N/A","N/A",4.5360000000000002E-4,0.90720000000000001,1E-3,1,"N/A","N/A"]
["Manitoba - Canadian Bituminous","N/A","N/A","N/A","N/A","N/A","N/A","N/A","N/A","N/A","N/A",4.5360000000000002E-4,0.90720000000000001,1E-3,1,"N/A","N/A"]
["Manitoba - U.S. Bituminous","N/A","N/A","N/A","N/A","N/A","N/A","N/A","N/A","N/A","N/A",4.5360000000000002E-4,0.90720000000000001,1E-3,1,"N/A","N/A"]
["Manitoba - Sub-bituminous","N/A","N/A","N/A","N/A","N/A","N/A","N/A","N/A","N/A","N/A",4.5360000000000002E-4,0.90720000000000001,1E-3,1,"N/A","N/A"]
["Manitoba - Lignite","N/A","N/A","N/A","N/A","N/A","N/A","N/A","N/A","N/A","N/A",4.5360000000000002E-4,0.90720000000000001,1E-3,1,"N/A","N/A"]
["Manitoba - Anthracite","N/A","N/A","N/A","N/A","N/A","N/A","N/A","N/A","N/A","N/A",4.5360000000000002E-4,0.90720000000000001,1E-3,1,"N/A","N/A"]
["Saskatchewan - Canadian Bituminous","N/A","N/A","N/A","N/A","N/A","N/A","N/A","N/A","N/A","N/A",4.5360000000000002E-4,0.90720000000000001,1E-3,1,"N/A","N/A"]
["Saskatchewan - Lignite","N/A","N/A","N/A","N/A","N/A","N/A","N/A","N/A","N/A","N/A",4.5360000000000002E-4,0.90720000000000001,1E-3,1,"N/A","N/A"]
["Alberta - Canadian Bituminous","N/A","N/A","N/A","N/A","N/A","N/A","N/A","N/A","N/A","N/A",4.5360000000000002E-4,0.90720000000000001,1E-3,1,"N/A","N/A"]
["Alberta - Sub-bituminous","N/A","N/A","N/A","N/A","N/A","N/A","N/A","N/A","N/A","N/A",4.5360000000000002E-4,0.90720000000000001,1E-3,1,"N/A","N/A"]
["Alberta - Anthracite","N/A","N/A","N/A","N/A","N/A","N/A","N/A","N/A","N/A","N/A",4.5360000000000002E-4,0.90720000000000001,1E-3,1,"N/A","N/A"]
["British Columbia - Canadian Bituminous","N/A","N/A","N/A","N/A","N/A","N/A","N/A","N/A","N/A","N/A",4.5360000000000002E-4,0.90720000000000001,1E-3,1,"N/A","N/A"]
["British Columbia - U.S. Bituminous","N/A","N/A","N/A","N/A","N/A","N/A","N/A","N/A","N/A","N/A",4.5360000000000002E-4,0.90720000000000001,1E-3,1,"N/A","N/A"]
["British Columbia - Sub-Bituminous","N/A","N/A","N/A","N/A","N/A","N/A","N/A","N/A","N/A","N/A",4.5360000000000002E-4,0.90720000000000001,1E-3,1,"N/A","N/A"]
["All Provinces -  Coke","N/A","N/A","N/A","N/A","N/A","N/A","N/A","N/A","N/A","N/A",4.5360000000000002E-4,0.90720000000000001,1E-3,1,"N/A","N/A"]
["Wood Fuel/Wood Waste",1.0550559865459259E-6,1.1109739538328601E-6,1.0550559865459261,1.11097395383286,1,"N/A","N/A","N/A","N/A","N/A",8.1647999999999998E-3,16.329599999999999,1.7999999999999999E-2,18,1.0527348633755249,3.6]
[]
[]
["Fuel type","CO2 Emission Factor","CH4 Emission Factor","N2O Emission Factor","Comments"]
["Liquid Fossil"]
["Light ('Distillate') Oil (Oil #2), stationary sources",2.7250000000000001,6.0000000000000002E-6,3.1000000000000001E-5,"Data collected by NCASI indicates that lime kilns and calciners may exhibit higher CH4 emissions than light oil-fired boilers.\nIPCC discussion of N2O formation conditions indicates that lime kilns may exhibit zero N2O emissions."]
["Heavy ('Residual') Oil (#6 Oil), stationary sources",3.1240000000000001,1.2E-4,6.3999999999999997E-5,"Data collected by NCASI indicates that lime kilns and calciners may exhibit lower CH4 emissions than heavy oil-fired boilers.\nIPCC discussion of N2O formation conditions indicates that lime kilns may exhibit zero N2O emissions."]
["Kerosene",2.5339999999999998,6.0000000000000002E-6,3.1000000000000001E-5]
["Diesel",2.6629999999999998,1.2999999999999999E-4,4.0000000000000002E-4]
["Propane",1.51,2.4000000000000001E-5,1.08E-4]
["Butane",1.73,2.4000000000000001E-5,1.08E-4]
["Ethane",0.97599999999999998,null,null,"Environment Canada does not provide CH4 nor N2O emission factors for Ethane."]
["Gaseous fossil"]
["Natural Gas, stationary sources (m3)",1.891,3.6999999999999998E-5,3.3000000000000003E-5,"Data collected by NCASI indicates that lime kilns and calciners may exhibit higher CH4 emissions than natural gas-fired boilers.\nIPCC discussion of N2O formation conditions indicates that lime kilns may exhibit zero N2O emissions."]
["Still Gas",1.75,null,1.9999999999999999E-6,"Environment Canada does not provide a CH4 emission factor for still gas."]
["Solid Fossil"]
["Newfoundland - Canadian Bituminous",2.25,3.0000000000000001E-5,2.0000000000000002E-5]
["Newfoundland - Antracite",2.39,3.0000000000000001E-5,2.0000000000000002E-5]
["Labrador - Canadian Bituminous",2.25,3.0000000000000001E-5,2.0000000000000002E-5]
["Labrador - Antracite",2.39,3.0000000000000001E-5,2.0000000000000002E-5]
["Nova Scotia - Canadian Bituminous",2.25,3.0000000000000001E-5,2.0000000000000002E-5]
["Nova Scotia - U.S. Bituminous",2.29,3.0000000000000001E-5,2.0000000000000002E-5]
["Nova Scotia - Sub-Bituminous",1.73,3.0000000000000001E-5,2.0000000000000002E-5]
["New Brunswick - Canadian Bituminous",2,3.0000000000000001E-5,2.0000000000000002E-5]
["New Brunswick - U.S. Bituminous",2.31,3.0000000000000001E-5,2.0000000000000002E-5]
["Quebec - Canadian Bituminous",2.25,3.0000000000000001E-5,2.0000000000000002E-5]
["Quebec - U.S. Bituminous",2.34,3.0000000000000001E-5,2.0000000000000002E-5]
["Quebec - Anthracite",2.39,3.0000000000000001E-5,2.0000000000000002E-5]
["Ontario - Canadian Bituminous",2.25,3.0000000000000001E-5,2.0000000000000002E-5]
["Ontario - U.S. Bituminous",2.4300000000000002,3.0000000000000001E-5,2.0000000000000002E-5]
["Ontario - Sub-bituminous",1.73,3.0000000000000001E-5,2.0000000000000002E-5]
["Ontario - Lignite",1.48,3.0000000000000001E-5,2.0000000000000002E-5]
["Ontario - Anthracite",2.39,3.0000000000000001E-5,2.0000000000000002E-5]
["Manitoba - Canadian Bituminous",2.25,3.0000000000000001E-5,2.0000000000000002E-5]
["Manitoba - U.S. Bituminous",2.4300000000000002,3.0000000000000001E-5,2.0000000000000002E-5]
["Manitoba - Sub-bituminous",1.73,3.0000000000000001E-5,2.0000000000000002E-5]
["Manitoba - Lignite",1.42,3.0000000000000001E-5,2.0000000000000002E-5]
["Manitoba - Anthracite",2.39,3.0000000000000001E-5,2.0000000000000002E-5]
["Saskatchewan - Canadian Bituminous",1.85,3.0000000000000001E-5,2.0000000000000002E-5]
["Saskatchewan - Lignite",1.43,3.0000000000000001E-5,2.0000000000000002E-5]
["Alberta - Canadian Bituminous",1.85,3.0000000000000001E-5,2.0000000000000002E-5]
["Alberta - Sub-bituminous",1.77,3.0000000000000001E-5,2.0000000000000002E-5]
["Alberta - Anthracite",2.39,3.0000000000000001E-5,2.0000000000000002E-5]
["British Columbia - Canadian Bituminous",2.0699999999999998,3.0000000000000001E-5,2.0000000000000002E-5]
["British Columbia - U.S. Bituminous",2.4300000000000002,3.0000000000000001E-5,2.0000000000000002E-5]
["British Columbia - Sub-Bituminous",1.77,3.0000000000000001E-5,2.0000000000000002E-5]
["All Provinces -  Coke",2.48,3.0000000000000001E-5,2.0000000000000002E-5]
["Biofuels*"]
["Wood Fuel/Wood Waste",0,1.6000000000000001E-4,1E-4,"Biomass combustion CO2 can be calculated in the \"Biomass Combustion CO2\" worksheet.  CH4 and N2O emission factors are from USEPA AP-42, converted to units consistent with the other EC emission factors."]
[]
["Biomass combustion co2:","kg CO2/GJ HHV"]
["Wood Fuel/Wood Waste",83.9]
[]
[null,"Carbon Dioxide Equivalents"]
["Province","kg CO2 equiv/MWh"]
["Alberta",930]
["British Columbia",20]
["Manitoba",10]
["New Brunswick",366]
["Newfoundland and Labrador",15]
["Yukon/Northwest Territories/Nunavut",80]
["Nova Scotia",549]
["Ontario",180]
["Prince Edward Island",192]
["Quebec",6]
["Saskatchewan",810]

{"sheet":"Revisions","index":16,"n_rows":4,"n_cols":4,"rows_kept":4,"cut":false,"hidden":false,"merged":[]}
["Version","Changes","Implementor","Date"]
["3.3b","Updated 100 year global warming potentials to IPCC AR4 and modified spreadsheet to enable easily changed GWPs.","BJM","2022-02-10"]
[null,"Created Revision tab","BJM","2022-03-01"]
[null,"Updated Method 3 on Waste Management tab to better reflect IPCC methodology","BJM","2022-03-01"]